Body Name,Body,Service Level,Expense Type,Expense Code,Narrative,Date,Transaction Number,Amount,Capital and Revenue,Supplier Name,Supplier ID
South Ribble Council,http://statistics.data.gov.uk/doc/local-authority/30UN,Housing,Contributions,4730,Supply and install insulation measures as part of the winter warmer scheme.,23/03/2018,0000438505,284.76,Revenue,A & M INSULATIONS LTD,00078414
South Ribble Council,http://statistics.data.gov.uk/doc/local-authority/30UN,Regeneration,Other Misc,4851,1 x RBX-EB with data logger in protective housing Software with USB download lead Carriage,09/03/2018,0000437855,"1,486.00",Revenue,A&P Chambers Ltd,132460
South Ribble Council,http://statistics.data.gov.uk/doc/local-authority/30UN,Housing,Cap Grant- Improve Grants,C570,DFG WORK ADDRESS REDACTED AGREED TO PAY 50% COST - 1867.50,16/03/2018,0000438228,"1,867.50",Revenue,ABBI PROPERTY SERVICES LTD,131357
South Ribble Council,http://statistics.data.gov.uk/doc/local-authority/30UN,Housing,Cap Grant- Improve Grants,C570,DFG WORK ATADDRESS REDACTED AGREED TO PAY 50% COST - 1600.00,16/03/2018,0000438229,"1,600.00",Revenue,ABBI PROPERTY SERVICES LTD,131357
South Ribble Council,http://statistics.data.gov.uk/doc/local-authority/30UN,Housing,Cap Grant- Improve Grants,C570,DFG WORK ATADDRESS REDACTED AGREED TO PAY 50%COST - 1640.00,16/03/2018,0000438230,"1,640.00",Revenue,ABBI PROPERTY SERVICES LTD,131357
South Ribble Council,http://statistics.data.gov.uk/doc/local-authority/30UN,Regeneration,Professional Fees,4510,provision of art features for St Catherine`s Art Trail,29/03/2018,0000438722,900.00,Revenue,Acorn Woodcraft,132427
South Ribble Council,http://statistics.data.gov.uk/doc/local-authority/30UN,Information Services,Peripherals,4244,"2 x Galaxy Tab Active 2 8.0 16GB @ 386.00 each and 1 x Google Chromecast2 @ 36.90, as per quote QUO-227255-P1Z0",29/03/2018,0000438769,808.90,Revenue,ACS SYSTEMS UK LTD,00070166
South Ribble Council,http://statistics.data.gov.uk/doc/local-authority/30UN,Property Services,Advertising,4841,Please supply Popper Shopper - x 1000 Popper Shopper - An innovative promotional bag designed to get your message ,16/03/2018,0000437920,"1,410.00",Revenue,AD OPTIONS LTD,00101556
South Ribble Council,http://statistics.data.gov.uk/doc/local-authority/30UN,Information Services,Peripherals,4241,"7 x Dell Latitude D520 6 Cell Battery Pack @ 35 each and 14 x 1Gb DDR2-667 SODIMM Module @ 9.00 each, plus delivery",21/03/2018,0000438442,381.00,Revenue,ADVANCED LAPTOP SOLUTIONS,00115238
South Ribble Council,http://statistics.data.gov.uk/doc/local-authority/30UN,Area 2 - Waste Transport/Eastern & Central Teams,External Contractors Charges,4570,SERVICE/REPAIRS - AE14AYF - JFC10081,09/03/2018,0000438095,"1,053.06",Revenue,AEBI SCHMIDT UK LTD,00085672
South Ribble Council,http://statistics.data.gov.uk/doc/local-authority/30UN,Area 2 - Waste Transport/Eastern & Central Teams,Materials General,4040,3 NO. SUCTION BOX COVER R/H (1057355-0) @58.86 - BIN 489,21/03/2018,0000438429,176.58,Revenue,AEBI SCHMIDT UK LTD,00085672
South Ribble Council,http://statistics.data.gov.uk/doc/local-authority/30UN,Area 2 - Waste Transport/Eastern & Central Teams,Materials General,4040,1 NO. MIRROR (12-97502350) - BIN 490,21/03/2018,0000438429,72.28,Revenue,AEBI SCHMIDT UK LTD,00085672
South Ribble Council,http://statistics.data.gov.uk/doc/local-authority/30UN,Area 2 - Waste Transport/Eastern & Central Teams,Materials General,4040,2 NO. SPRAY BAR BRACKET (1109780-4) @48.56 - BIN 491,21/03/2018,0000438429,97.12,Revenue,AEBI SCHMIDT UK LTD,00085672
South Ribble Council,http://statistics.data.gov.uk/doc/local-authority/30UN,Area 2 - Waste Transport/Eastern & Central Teams,Materials General,4040,2 NO. SWING OUT CYLINDER BALL JOINT (12-1703821) @48.40 - BIN 492,21/03/2018,0000438429,96.80,Revenue,AEBI SCHMIDT UK LTD,00085672
South Ribble Council,http://statistics.data.gov.uk/doc/local-authority/30UN,Area 2 - Waste Transport/Eastern & Central Teams,Materials General,4040,4 NO. SWING OUT CYLINDER RETAINING PIN (12-15110215) @16.70 - BIN 493,21/03/2018,0000438429,81.80,Revenue,AEBI SCHMIDT UK LTD,00085672
South Ribble Council,http://statistics.data.gov.uk/doc/local-authority/30UN,Regeneration,Advertising,4842,"Requirements for Penwortham Live 2018: - Flyers artwork & proofs - 50 Printing of 2,500  224 Banners artwork",27/03/2018,0000438405,608.00,Revenue,AINSWORTH & PARKINSON,130107
South Ribble Council,http://statistics.data.gov.uk/doc/local-authority/30UN,Development Enterprise & Comm Mgnt,Other Misc,485A,Worden Events Artwork & Proofs @ 390 x2000 A4 leaflets printed full colour @ 200,29/03/2018,0000438772,590.00,Revenue,AINSWORTH & PARKINSON,130107
South Ribble Council,http://statistics.data.gov.uk/doc/local-authority/30UN,HR & Communications,Training Expense-Course Fees,1403,NAME REDACTED TO ATTEND LEAD AUDITORS QUALIFICATION COURSE,29/03/2018,0000438404,"1,295.00",Revenue,ALCUMUS ISOQAR LTD,131571
South Ribble Council,http://statistics.data.gov.uk/doc/local-authority/30UN,Development Enterprise & Comm Mgnt,Consultancy Fees,4548,3rd Year Registration and surveillance visit 25th January 2018 Registration period 30/07/2017 to 29/07/2018 805 plus VAT,29/03/2018,0000438471,805.00,Revenue,ALCUMUS ISOQAR LTD,131571
South Ribble Council,http://statistics.data.gov.uk/doc/local-authority/30UN,Revenues Plus,Financial,4811,post office trans,07/03/2018,0000438129,315.66,Revenue,ALLPAY LTD,00122276
South Ribble Council,http://statistics.data.gov.uk/doc/local-authority/30UN,Revenues Plus,Financial,4811,paypoint,07/03/2018,0000438129,109.65,Revenue,ALLPAY LTD,00122276
South Ribble Council,http://statistics.data.gov.uk/doc/local-authority/30UN,Revenues Plus,Financial,4811,webconnect,07/03/2018,0000438129,46.56,Revenue,ALLPAY LTD,00122276
South Ribble Council,http://statistics.data.gov.uk/doc/local-authority/30UN,Regeneration,Other Misc,4861,3 Heritage Trail Leaflets as per sample Each Leaflet - 2000 x A5 8pp Folded & Stapled - 150gsm silk Cost of printing 2000 leaflets,02/03/2018,0000437603,900.00,Revenue,AMJ LTD (THE STATIONERY STORE),00096946
South Ribble Council,http://statistics.data.gov.uk/doc/local-authority/30UN,Property Services,Rep & Maint Premises,2020,Doc number CH/17/689/MP Sampling at South Ribble Borough Council - Localised Refurbishment Survey 24 August 2017 ,02/03/2018,0000437953,275.00,Revenue,APEC Environmental Ltd,132327
South Ribble Council,http://statistics.data.gov.uk/doc/local-authority/30UN,Housing,Cap Grant- Improve Grants,C570,DFG WORKS ATADDRESS REDACTED AS PER YOUR QUOTE AMOUNT - 3529.00,16/03/2018,0000438386,"4,434.00",Revenue,ASH BARN CONSTRUCTION LTD,00081278
South Ribble Council,http://statistics.data.gov.uk/doc/local-authority/30UN,Regeneration,Other Misc,4851,Community Integration Fund,29/03/2018,0000438596,"2,500.00",Revenue,Asone Training Ltd,132376
South Ribble Council,http://statistics.data.gov.uk/doc/local-authority/30UN,Democratic Services,Repair Costs,4059,"Quotation: 17-16228 Auditel Computer with ACCS, 19`` LCD Monitor, Mouse, Keyboard & 8 port Serial Card (PC-ACCS-SER8)",23/03/2018,0000438502,"2,895.00",Revenue,AUDITEL,130495
South Ribble Council,http://statistics.data.gov.uk/doc/local-authority/30UN,Democratic Services,Repair Costs,4059,Quotation: 17-16228 Dual VGA Display Graphics card (PCI-X16-VGA2),23/03/2018,0000438502,325.00,Revenue,AUDITEL,130495
South Ribble Council,http://statistics.data.gov.uk/doc/local-authority/30UN,Democratic Services,Repair Costs,4059,Quotation: 17-16228 Installation & Commission (INS/COMMS),23/03/2018,0000438502,345.00,Revenue,AUDITEL,130495
South Ribble Council,http://statistics.data.gov.uk/doc/local-authority/30UN,Revenues Plus,Balance Sheet,0001,,23/03/2018,0000438537,"3,368.68",Revenue,AVACAB LTD,00109859
South Ribble Council,http://statistics.data.gov.uk/doc/local-authority/30UN,Environmental Health,Operational Furniture & Equip,4010,As per Quote 13193 - Printing of Pest Control Inspection Pads.,07/03/2018,0000437888,280.00,Revenue,B & D PRINT SERVICES LTD,00015134
South Ribble Council,http://statistics.data.gov.uk/doc/local-authority/30UN,Area 3 - Parks/Leyland East West,Advertising,4842,1000 BRICKCROFT LEAFLETS,23/03/2018,0000438451,286.00,Revenue,B & D PRINT SERVICES LTD,00015134
South Ribble Council,http://statistics.data.gov.uk/doc/local-authority/30UN,Area 3 - Parks/Leyland East West,Capital Expenditure,C230,"Supply of 56No trees as per the attached list delivered to Worden Park Depot, Leyland. PR25 1DJ. ",16/03/2018,0000437886,"5,300.00",Revenue,BANNISTER HALL LANDSCAPE SUPPLIES,00117786
South Ribble Council,http://statistics.data.gov.uk/doc/local-authority/30UN,Area 3 - Parks/Leyland East West,Materials General,4046,Various Trees - 2018 Programme,07/03/2018,0000437954,487.50,Revenue,BANNISTER HALL LANDSCAPE SUPPLIES,00117786
South Ribble Council,http://statistics.data.gov.uk/doc/local-authority/30UN,Area 3 - Parks/Leyland East West,Capital Expenditure,C230,TREES AND WHIPS AS PER THE ATTACHED LIST,07/03/2018,0000438017,630.60,Revenue,BANNISTER HALL LANDSCAPE SUPPLIES,00117786
South Ribble Council,http://statistics.data.gov.uk/doc/local-authority/30UN,Area 3 - Parks/Leyland East West,Capital Expenditure,C230,"Supply of 56No trees as per the attached list delivered to Worden Park Depot, Leyland. PR25 1DJ",16/03/2018,0000438018,481.00,Revenue,BANNISTER HALL LANDSCAPE SUPPLIES,00117786
South Ribble Council,http://statistics.data.gov.uk/doc/local-authority/30UN,Area 3 - Parks/Leyland East West,Capital Expenditure,C230,"Supply of 56No trees as per the attached list delivered to Worden Park Depot, Leyland. PR25 1DJ",16/03/2018,0000438019,"1,814.00",Revenue,BANNISTER HALL LANDSCAPE SUPPLIES,00117786
South Ribble Council,http://statistics.data.gov.uk/doc/local-authority/30UN,Neighbourhood Admin & Support,Capital Expenditure,C230,170 x 1.8m TIMER STAKES,07/03/2018,0000438119,374.00,Revenue,BANNISTER HALL LANDSCAPE SUPPLIES,00117786
South Ribble Council,http://statistics.data.gov.uk/doc/local-authority/30UN,Neighbourhood Admin & Support,Capital Expenditure,C230,2 x 38mm x 25m STRAPPING ROLL,07/03/2018,0000438119,43.60,Revenue,BANNISTER HALL LANDSCAPE SUPPLIES,00117786
South Ribble Council,http://statistics.data.gov.uk/doc/local-authority/30UN,Neighbourhood Admin & Support,Capital Expenditure,C230,100 x CUSHION BLOCKS,07/03/2018,0000438119,86.00,Revenue,BANNISTER HALL LANDSCAPE SUPPLIES,00117786
South Ribble Council,http://statistics.data.gov.uk/doc/local-authority/30UN,Area 3 - Parks/Leyland East West,Capital Expenditure,C230,"Supply of 56No trees as per the attached list delivered to Worden Park Depot, Leyland. PR25 1DJ",16/03/2018,0000438143,"2,554.00",Revenue,BANNISTER HALL LANDSCAPE SUPPLIES,00117786
South Ribble Council,http://statistics.data.gov.uk/doc/local-authority/30UN,Shared Financial Services,Balance Sheet,0030,,29/03/2018,0000438817,"1,637.11",Revenue,Barclays Bank Plc,130842
South Ribble Council,http://statistics.data.gov.uk/doc/local-authority/30UN,Shared Financial Services,Balance Sheet,0030,Dec-17,29/03/2018,0000438818,671.49,Revenue,Barclays Bank Plc,130842
South Ribble Council,http://statistics.data.gov.uk/doc/local-authority/30UN,Shared Financial Services,Balance Sheet,0030,Oct-17,29/03/2018,0000438819,"2,402.58",Revenue,Barclays Bank Plc,130842
South Ribble Council,http://statistics.data.gov.uk/doc/local-authority/30UN,Shared Financial Services,Balance Sheet,0030,Sep-17,29/03/2018,0000438820,"2,489.30",Revenue,Barclays Bank Plc,130842
South Ribble Council,http://statistics.data.gov.uk/doc/local-authority/30UN,Shared Financial Services,Balance Sheet,0030,Feb-18,29/03/2018,0000438821,816.32,Revenue,Barclays Bank Plc,130842
South Ribble Council,http://statistics.data.gov.uk/doc/local-authority/30UN,Shared Financial Services,Balance Sheet,0030,,29/03/2018,0000438822,"2,569.05",Revenue,Barclays Bank Plc,130842
South Ribble Council,http://statistics.data.gov.uk/doc/local-authority/30UN,Shared Financial Services,Balance Sheet,0030,Mar-18,29/03/2018,0000438831,"1,337.27",Revenue,Barclays Bank Plc,130842
South Ribble Council,http://statistics.data.gov.uk/doc/local-authority/30UN,Property Services,Capital Expenditure,C230,To undertake works on 1st floor east wing Civic centre as per quotation dated 27th March 2017 given to property services.,02/03/2018,0000437957,306.27,Revenue,BELEC ELECTRICAL LTD,130290
South Ribble Council,http://statistics.data.gov.uk/doc/local-authority/30UN,Property Services,Rep & Maint Premises,2020,Annual Contract 2017/2018 Electrical Testing and Electrical  Installation Test at Kingsfold Community Centre,09/03/2018,0000438000,414.00,Revenue,BELEC ELECTRICAL LTD,130290
South Ribble Council,http://statistics.data.gov.uk/doc/local-authority/30UN,Property Services,Rep & Maint Premises,2020,Annual Contract 2017/018 Electrical Testing and Electrical  Installation Test at Civic Centre,09/03/2018,0000438005,414.00,Revenue,BELEC ELECTRICAL LTD,130290
South Ribble Council,http://statistics.data.gov.uk/doc/local-authority/30UN,Property Services,Rep & Maint Premises,2020,Annual Contract 2017/2018 Electrical Testing and Fan Convector Maintenance at Civic Centre,09/03/2018,0000438184,276.00,Revenue,BELEC ELECTRICAL LTD,130290
South Ribble Council,http://statistics.data.gov.uk/doc/local-authority/30UN,Property Services,Rep & Maint Premises,2020,Please replace the consumer unit at 15C Boxer Place,23/03/2018,0000438554,438.08,Revenue,BELEC ELECTRICAL LTD,130290
South Ribble Council,http://statistics.data.gov.uk/doc/local-authority/30UN,Property Services,Rep & Maint Premises,2020,9X High bay LED light at 330 each (5 year guarantee) Labour 480 Elevation platform and transportation to be charged at cost,27/03/2018,0000438645,"4,623.50",Revenue,BELEC ELECTRICAL LTD,130290
South Ribble Council,http://statistics.data.gov.uk/doc/local-authority/30UN,Property Services,Rep & Maint Premises,2020,Annual Contract 2017/2018 Electrical Testing and Electrical  Installation Test at Moss Side Depot,29/03/2018,0000438735,920.00,Revenue,BELEC ELECTRICAL LTD,130290
South Ribble Council,http://statistics.data.gov.uk/doc/local-authority/30UN,Property Services,Rep & Maint Premises,2020,Please attend the paddock room at the civic centre to install 2No double plug sockets. see caretakers for information,29/03/2018,0000438742,352.70,Revenue,BELEC ELECTRICAL LTD,130290
South Ribble Council,http://statistics.data.gov.uk/doc/local-authority/30UN,Property Services,Rep & Maint Premises,2020,To undertake works to the Civic Centre in preparation for extra HFX points around the building.,29/03/2018,0000438798,"1,449.12",Revenue,BELEC ELECTRICAL LTD,130290
South Ribble Council,http://statistics.data.gov.uk/doc/local-authority/30UN,Development Enterprise & Comm Mgnt,Advertising,4842,Various Sports Equipment,29/03/2018,0000438789,577.95,Revenue,Bishop Sports & Leisure Ltd,131843
South Ribble Council,http://statistics.data.gov.uk/doc/local-authority/30UN,Area 2 - Waste Transport/Eastern & Central Teams,Materials General,4040,ANNUAL RENTAL: 2 X OXYGEN @ 240.40 2 X ACETYLENE @ 318.20,21/03/2018,0000438466,558.60,Revenue,BOC GASES,00015147
South Ribble Council,http://statistics.data.gov.uk/doc/local-authority/30UN,Regeneration,Capital Expenditure,C234,2 leg lactern A3 Replacement A2 Panel Carriage,23/03/2018,0000438633,725.00,Revenue,BORDER SIGNS AND GRAPHIX,130927
South Ribble Council,http://statistics.data.gov.uk/doc/local-authority/30UN,Regeneration,Other Misc,4861,Lectern required - A2 size in grp multiguard with 2 legs as previously supplied  Contact - NAME REDACTED,29/03/2018,0000438773,585.00,Revenue,BORDER SIGNS AND GRAPHIX,130927
South Ribble Council,http://statistics.data.gov.uk/doc/local-authority/30UN,Healthy Communities,Grants to Vol Bodies,4711,grant,21/03/2018,0000438517,250.00,Revenue,Bowmen of Pendle & Samlesbury,132502
South Ribble Council,http://statistics.data.gov.uk/doc/local-authority/30UN,Property Services,Rep & Maint Premises,2020,To supply & fit a new boiler to Carr Street Community Centre as per your quotation 00020164 Please contact NAME REDACTED,16/03/2018,0000438281,"2,287.57",Revenue,BRITISH GAS SERVICES (COMMERCIAL) LTD,00016214
South Ribble Council,http://statistics.data.gov.uk/doc/local-authority/30UN,Regeneration,Other Misc,4851,13 x Cafes @ 100 each - Veteran Caf� Venue Hire and Catering Period Sep 2017 � March 2018,29/03/2018,0000438724,"1,300.00",Revenue,BROTHERS OF CHARITY SERVICES,00086956
South Ribble Council,http://statistics.data.gov.uk/doc/local-authority/30UN,Neighbourhood Admin & Support,Capital Expenditure,C230,BX45 2596 Derby Slimline Litter Bin Logos Front & Rear Dog Waste Accepted Gold Dimensions 1020 x 535 x 410 Capacity 90l,07/03/2018,0000438011,460.00,Revenue,BROXAP LTD,00028736
South Ribble Council,http://statistics.data.gov.uk/doc/local-authority/30UN,Neighbourhood Admin & Support,Capital Expenditure,C230,Carriage,07/03/2018,0000438011,41.00,Revenue,BROXAP LTD,00028736
South Ribble Council,http://statistics.data.gov.uk/doc/local-authority/30UN,Property Services,Clothing- Uniforms & Laundry,4410,To supply uniform items  for SRBC - including P&P,09/03/2018,0000438172,448.65,Revenue,BURLINGTON UNIFORMS LTD,130320
South Ribble Council,http://statistics.data.gov.uk/doc/local-authority/30UN,Area 3 - Parks/Leyland East West,Capital Expenditure,C230,BLUE DRAW ROPE6MM - 220M (21.82) 60 NO. 47 X 47MM TIMBER PEGS (38.40) 100 X 38 SOFTWOOD FENCE RAILS,09/03/2018,0000438050,528.64,Revenue,C & W BERRY LTD,00015231
South Ribble Council,http://statistics.data.gov.uk/doc/local-authority/30UN,Revenues Plus,Peripherals,4242,software,07/03/2018,0000438160,"1,900.00",Revenue,CAPITA BUSINESS SERVICES LTD,00117948
South Ribble Council,http://statistics.data.gov.uk/doc/local-authority/30UN,HR & Communications,Recruitment Expenses,1500,Recruitment and assessment for the Deputy CEO position 2018,29/03/2018,0000438805,"4,850.00",Revenue,CAPITA RESOURCING LTD,132257
South Ribble Council,http://statistics.data.gov.uk/doc/local-authority/30UN,HR & Communications,Recruitment Expenses,1500,Assessment process for the new leadership team 2018,29/03/2018,0000438806,"3,250.00",Revenue,CAPITA RESOURCING LTD,132257
South Ribble Council,http://statistics.data.gov.uk/doc/local-authority/30UN,HR & Communications,Recruitment Expenses,1500,PO GRN IN FULL should have been part paid for 2 invoices,29/03/2018,0000438807,"4,485.00",Revenue,CAPITA RESOURCING LTD,132257
South Ribble Council,http://statistics.data.gov.uk/doc/local-authority/30UN,Area 3 - Parks/Leyland East West,Advertising,4842,First Aid Course for the Wednesday Walkers at Neighbourhood Services Depot on Wed 14th February 2018 ,27/03/2018,0000438720,375.00,Revenue,Centaur Training Services (North West) Ltd,132060
South Ribble Council,http://statistics.data.gov.uk/doc/local-authority/30UN,Homelessness,Contributions,4730,For winterwatch provision at Cotswold House,09/03/2018,0000438137,705.60,Revenue,CHORLEY BOROUGH COUNCIL,00017352
South Ribble Council,http://statistics.data.gov.uk/doc/local-authority/30UN,Homelessness,Contributions,4730,Block booking Flat 20 February 2018 28 days at 35.28 +vat,07/03/2018,0000438138,987.96,Revenue,CHORLEY BOROUGH COUNCIL,00017352
South Ribble Council,http://statistics.data.gov.uk/doc/local-authority/30UN,Area 2 - Waste Transport/Eastern & Central Teams,External Contractors Charges,4570,Refuse Collection - Buckshaw Village 2017/18,23/03/2018,0000438516,"51,085.00",Revenue,CHORLEY BOROUGH COUNCIL,00017352
South Ribble Council,http://statistics.data.gov.uk/doc/local-authority/30UN,Shared Financial Services,External Contractors Charges,4570,Provision of Shared Financial Services for the period 1st April 2017 to 31st March 2018,29/03/2018,0000438829,"180,000.00",Revenue,CHORLEY BOROUGH COUNCIL,00017352
South Ribble Council,http://statistics.data.gov.uk/doc/local-authority/30UN,Property Services,Rep & Maint Premises,2020,To supply & fit panic alarms to 1st floor civic centre as per your quotation No 618499,09/03/2018,0000437965,690.00,Revenue,CHUBB LTD,00090625
South Ribble Council,http://statistics.data.gov.uk/doc/local-authority/30UN,Property Services,Capital Expenditure,C230,"Please carry out CCTV installation at the Civic centre as per your quotations 575513, 578151 & 565822",09/03/2018,0000437967,"1,869.00",Revenue,CHUBB LTD,00090625
South Ribble Council,http://statistics.data.gov.uk/doc/local-authority/30UN,Property Services,Capital Expenditure,C230,Install and commission an additional 11 panic buttons to the 1st floor office at the civic centre as per your quotation ref 615215,09/03/2018,0000437968,"1,128.00",Revenue,CHUBB LTD,00090625
South Ribble Council,http://statistics.data.gov.uk/doc/local-authority/30UN,HR & Communications,Payroll Suspense,1741,MEMBERSHIP SUBSCRIPTION FOR NAME REDACTED 1.4.2018 - 31/3/2018,07/03/2018,0000438036,238.00,Revenue,CIIA (CHARTERED INST OF INT AUDITORS),00024934
South Ribble Council,http://statistics.data.gov.uk/doc/local-authority/30UN,HR & Communications,Training Expense-Course Fees,1403,MEMBERSHIP SUBSCRIPTION FOR NAME REDACTED 1.4.2018 - 31/3/2018,07/03/2018,0000438036,250.00,Revenue,CIIA (CHARTERED INST OF INT AUDITORS),00024934
South Ribble Council,http://statistics.data.gov.uk/doc/local-authority/30UN,Shared Financial Services,Publications,4140,CIPFA Publications Subscription 1 April 2018 - 31 March 2019,23/03/2018,0000438547,"2,685.00",Revenue,CIPFA BUSINESS LTD,00017187
South Ribble Council,http://statistics.data.gov.uk/doc/local-authority/30UN,Environmental Health,Operational Furniture & Equip,4010,As per quotation no 23072 - Noise equip as per NAME REDACTED,23/03/2018,0000438508,"10,163.24",Revenue,CIRRUS RESEARCH PLC,131450
South Ribble Council,http://statistics.data.gov.uk/doc/local-authority/30UN,Housing,Cap Grant- Improve Grants,C570,"DFG WORKS TO AT ADDRESS REDACTED as per your quote of 2460.00, The grant is 50% of your quote. COST 1230.00",16/03/2018,0000438351,"1,230.00",Revenue,City West Works T/A ForWorks,132352
South Ribble Council,http://statistics.data.gov.uk/doc/local-authority/30UN,Information Services,Capital Expenditure,C234,"Build, test and deploy the application onto Windows 2012 servers. Upgrade the application to the latest release of WorkFlow360",02/03/2018,0000437604,"11,235.00",Revenue,CIVICA UK LTD,00102717
South Ribble Council,http://statistics.data.gov.uk/doc/local-authority/30UN,Development Enterprise & Comm Mgnt,Other Misc,4851,Survey and drawing of an orienteering map for the following schools and teaching packs: Phase 5 29/01/2018 Farington Moss St,09/03/2018,0000437780,510.00,Revenue,Cloughaman Maps,131671
South Ribble Council,http://statistics.data.gov.uk/doc/local-authority/30UN,HR & Communications,Balance Sheet,0030,CHILDCARE VOUCHERS - FEBRUARY 2018,16/03/2018,0000437660,"2,492.35",Revenue,COMPUTERSHARE VOUCHER SERVICES,00116499
South Ribble Council,http://statistics.data.gov.uk/doc/local-authority/30UN,HR & Communications,Balance Sheet,0030,CHILDCARE VOUCHERS - MARCH 2018,16/03/2018,0000438186,"2,535.35",Revenue,COMPUTERSHARE VOUCHER SERVICES,00116499
South Ribble Council,http://statistics.data.gov.uk/doc/local-authority/30UN,Property Services,Rep & Maint Premises,2020,Civic Centre  Install 2 x windows into meeting room doors  Supply and install 4 x digi locks  1 x lock for cleaners cupboard,27/03/2018,0000438598,250.56,Revenue,COOPER BESPOKE JOINERY LTD,00104456
South Ribble Council,http://statistics.data.gov.uk/doc/local-authority/30UN,Property Services,Rep & Maint Premises,2020,materials,27/03/2018,0000438598,258.04,Revenue,COOPER BESPOKE JOINERY LTD,00104456
South Ribble Council,http://statistics.data.gov.uk/doc/local-authority/30UN,Property Services,Operational Furniture & Equip,4010,Civic Centre To manufacture an oak cabinet for the sword to be displayed at the Civic Centre,27/03/2018,0000438602,"1,002.24",Revenue,COOPER BESPOKE JOINERY LTD,00104456
South Ribble Council,http://statistics.data.gov.uk/doc/local-authority/30UN,Property Services,Operational Furniture & Equip,4010,materials,27/03/2018,0000438602,933.76,Revenue,COOPER BESPOKE JOINERY LTD,00104456
South Ribble Council,http://statistics.data.gov.uk/doc/local-authority/30UN,Property Services,Rep & Maint Premises,2020,This order is for 3 sites  1. Civic Centre - Replace disabled toilet door 1st floor Civic Centre,29/03/2018,0000438613,146.88,Revenue,COOPER BESPOKE JOINERY LTD,00104456
South Ribble Council,http://statistics.data.gov.uk/doc/local-authority/30UN,Property Services,Rep & Maint Premises,2020,2. Replace locks on Unit 2 Heaton Street Leyland,29/03/2018,0000438613,34.56,Revenue,COOPER BESPOKE JOINERY LTD,00104456
South Ribble Council,http://statistics.data.gov.uk/doc/local-authority/30UN,Property Services,Rep & Maint Premises,2020,3. Remove blinds from 1st floor disabled toilet and put on 1st floor east wing,29/03/2018,0000438613,17.28,Revenue,COOPER BESPOKE JOINERY LTD,00104456
South Ribble Council,http://statistics.data.gov.uk/doc/local-authority/30UN,Property Services,Rep & Maint Premises,2020,materials refer to line 1,29/03/2018,0000438613,186.25,Revenue,COOPER BESPOKE JOINERY LTD,00104456
South Ribble Council,http://statistics.data.gov.uk/doc/local-authority/30UN,Property Services,Rep & Maint Premises,2020,materials refer to line 2,29/03/2018,0000438613,24.68,Revenue,COOPER BESPOKE JOINERY LTD,00104456
South Ribble Council,http://statistics.data.gov.uk/doc/local-authority/30UN,Property Services,Rep & Maint Premises,2020,Door at ADDRESS REDACTED,27/03/2018,0000438615,293.76,Revenue,COOPER BESPOKE JOINERY LTD,00104456
South Ribble Council,http://statistics.data.gov.uk/doc/local-authority/30UN,Property Services,Rep & Maint Premises,2020,materials,27/03/2018,0000438615,196.55,Revenue,COOPER BESPOKE JOINERY LTD,00104456
South Ribble Council,http://statistics.data.gov.uk/doc/local-authority/30UN,Property Services,Rep & Maint Premises,2020,To supply and fit a 30 min fire rated oak veneered door with smoke seals to the Oaks Room with new ironmongery and boarding,27/03/2018,0000438617,293.76,Revenue,COOPER BESPOKE JOINERY LTD,00104456
South Ribble Council,http://statistics.data.gov.uk/doc/local-authority/30UN,Property Services,Rep & Maint Premises,2020,materials,27/03/2018,0000438617,290.24,Revenue,COOPER BESPOKE JOINERY LTD,00104456
South Ribble Council,http://statistics.data.gov.uk/doc/local-authority/30UN,Property Services,Rep & Maint Premises,2020,To supply & fit galvanised wire mesh to the windows at Penwortham Holme as per quotation e-mailed to property services.,29/03/2018,0000438800,587.52,Revenue,COOPER BESPOKE JOINERY LTD,00104456
South Ribble Council,http://statistics.data.gov.uk/doc/local-authority/30UN,Property Services,Rep & Maint Premises,2020,materials,29/03/2018,0000438800,846.08,Revenue,COOPER BESPOKE JOINERY LTD,00104456
South Ribble Council,http://statistics.data.gov.uk/doc/local-authority/30UN,Housing,Cap Grant- Improve Grants,C570,DFG WORKS AT ADDRESS REDACTED COST  18140.00 GRANT APPROVED 16619.00 CUSTOMER CONTRIBUTION,16/03/2018,0000438388,"5,000.00",Revenue,Cornerstone Building & Maintenance Ltd,131383
South Ribble Council,http://statistics.data.gov.uk/doc/local-authority/30UN,Planning,Microfilming,4151,Maintenance contract for microfiche scanner,27/03/2018,0000438538,395.00,Revenue,Covergold Limited,131096
South Ribble Council,http://statistics.data.gov.uk/doc/local-authority/30UN,Information Services,Peripherals,4246,"Cables tester, plugs, connectors, cable tidy & speakers",07/03/2018,0000438096,279.34,Revenue,CPC Re: COMBINED PRECISION COMPONENTS PLC,00017954
South Ribble Council,http://statistics.data.gov.uk/doc/local-authority/30UN,Revenues Plus,Postage,4291,Postage for Feb 2018,07/03/2018,0000438117,390.18,Revenue,CRITIQOM,131053
South Ribble Council,http://statistics.data.gov.uk/doc/local-authority/30UN,Revenues Plus,Postage,4291,Postage March,21/03/2018,0000438411,500.73,Revenue,CRITIQOM,131053
South Ribble Council,http://statistics.data.gov.uk/doc/local-authority/30UN,Revenues Plus,Stationery,4130,Stationery April 18 Annual Billing,23/03/2018,0000438580,"3,209.79",Revenue,CRITIQOM,131053
South Ribble Council,http://statistics.data.gov.uk/doc/local-authority/30UN,Revenues Plus,Postage,4291,Postage March,23/03/2018,0000438588,637.35,Revenue,CRITIQOM,131053
South Ribble Council,http://statistics.data.gov.uk/doc/local-authority/30UN,Revenues Plus,Postage,4291,Postage April 18 Annual Billing,23/03/2018,0000438589,"8,000.00",Revenue,CRITIQOM,131053
South Ribble Council,http://statistics.data.gov.uk/doc/local-authority/30UN,Revenues Plus,Postage,4291,Postage April 18 Annual Billing,23/03/2018,0000438589,"6,522.41",Revenue,CRITIQOM,131053
South Ribble Council,http://statistics.data.gov.uk/doc/local-authority/30UN,Property Services,Rep & Maint Premises,2020,"maintenance of 1 x  McSmart 240cr Industrial Water Chiller  and 1 x McQuay Air Handling Unit Schedule1, Schedule2,Schedule3",02/03/2018,0000437962,510.00,Revenue,DAIKIN APPLIED SERVICE,130324
South Ribble Council,http://statistics.data.gov.uk/doc/local-authority/30UN,Area 2 - Waste Transport/Eastern & Central Teams,External Contractors Charges,4570,"excess Spec Repair, BJ66 SMO, JFC9872. (NAME REDACTED)",21/03/2018,0000438373,250.00,Revenue,DAVAND LTD (trading as Longton Coachcraft),131579
South Ribble Council,http://statistics.data.gov.uk/doc/local-authority/30UN,Area 2 - Waste Transport/Eastern & Central Teams,External Contractors Charges,4570,vat,21/03/2018,0000438373,0.00,Revenue,DAVAND LTD (trading as Longton Coachcraft),131579
South Ribble Council,http://statistics.data.gov.uk/doc/local-authority/30UN,Area 2 - Waste Transport/Eastern & Central Teams,External Contractors Charges,4570,SPEC REPAIR (REPLACE COMPRESSOR PIPE) - JFC10279 - VO65KPX - TH,23/03/2018,0000438527,279.84,Revenue,DENNIS EAGLE LTD,00019774
South Ribble Council,http://statistics.data.gov.uk/doc/local-authority/30UN,Area 2 - Waste Transport/Eastern & Central Teams,External Contractors Charges,4570,SPEC REPAIR - JFC10282 - VN10DKL - TH,27/03/2018,0000438657,"1,312.17",Revenue,DENNIS EAGLE LTD,00019774
South Ribble Council,http://statistics.data.gov.uk/doc/local-authority/30UN,Property Services,Rep & Maint Premises,2020,"Fire alarm relay for 11 x doors at 195 per door Cost includes cable, labour and relay and commission onto fire alarm panel",21/03/2018,0000438376,"2,145.00",Revenue,DES Electrical Services Ltd,131437
South Ribble Council,http://statistics.data.gov.uk/doc/local-authority/30UN,Property Services,Rep & Maint Premises,2020,"Please attend the Civic Centre to check the fire alarm sounders, see the caretakers for details.",27/03/2018,0000438638,285.00,Revenue,DES Electrical Services Ltd,131437
South Ribble Council,http://statistics.data.gov.uk/doc/local-authority/30UN,Property Services,Rep & Maint Premises,2020,Attend the civic centre to remove smoke detectors to the 1st floor and re-install once works have been completed ,27/03/2018,0000438646,355.00,Revenue,DES Electrical Services Ltd,131437
South Ribble Council,http://statistics.data.gov.uk/doc/local-authority/30UN,Area 3 - Parks/Leyland East West,Clothing- Uniforms & Laundry,4410,Safety Climbing Helmet with visor and chipper muffs,16/03/2018,0000438009,95.25,Revenue,DICK LEIGH,00026534
South Ribble Council,http://statistics.data.gov.uk/doc/local-authority/30UN,Area 3 - Parks/Leyland East West,Clothing- Uniforms & Laundry,4410,Class C Chainsaw Trousers,16/03/2018,0000438009,170.00,Revenue,DICK LEIGH,00026534
South Ribble Council,http://statistics.data.gov.uk/doc/local-authority/30UN,Area 3 - Parks/Leyland East West,Clothing- Uniforms & Laundry,4410,Chainsaw Climbing Boots,16/03/2018,0000438009,179.00,Revenue,DICK LEIGH,00026534
South Ribble Council,http://statistics.data.gov.uk/doc/local-authority/30UN,Area 3 - Parks/Leyland East West,Clothing- Uniforms & Laundry,4410,Emergency Rope Knife,16/03/2018,0000438009,17.50,Revenue,DICK LEIGH,00026534
South Ribble Council,http://statistics.data.gov.uk/doc/local-authority/30UN,Environmental Health,Consultancy Fees,4541,CONSULTANCY FEES - WORKING GROUP ON 2 FEBRUARY 2018 - NAME REDACTED ATTENDANCE FEE,29/03/2018,0000438436,150.00,Revenue,DISABILITY EQUALITY,130954
South Ribble Council,http://statistics.data.gov.uk/doc/local-authority/30UN,Environmental Health,Consultancy Fees,4541,CONSULTANCY FEES - WORKING GROUP ON 2 FEBRUARY 2018 - NAME REDACTED SPEECH TO TEXT REPORTING,29/03/2018,0000438436,240.00,Revenue,DISABILITY EQUALITY,130954
South Ribble Council,http://statistics.data.gov.uk/doc/local-authority/30UN,Homelessness,Contributions,4730,1 YEAR CONTRACT January-March 2018,21/03/2018,0000438482,"4,875.00",Revenue,Disc (Developing initiatives supporting communitie,132271
South Ribble Council,http://statistics.data.gov.uk/doc/local-authority/30UN,Regeneration,Advertising,4842,"For delivery of the Forum flyers of 5,000 to the Western Parishes and 5,000 to the Penwortham area",27/03/2018,0000438526,350.00,Revenue,Door2doornorthwest,131705
South Ribble Council,http://statistics.data.gov.uk/doc/local-authority/30UN,Area 3 - Parks/Leyland East West,Capital Expenditure,C230,"IMPROVEMENT WORK TO WESTERN SIDE OF WITHY GROVE PARK, BAMBER BRIDGE WORKS AND MATERIAL",23/03/2018,0000438435,"31,329.50",Revenue,Dowhigh Ltd,132324
South Ribble Council,http://statistics.data.gov.uk/doc/local-authority/30UN,Area 3 - Parks/Leyland East West,Capital Expenditure,C230,imp works to western side of withy grove park BB Po GRN`d in full by NAME REDACTED,23/03/2018,0000438435,"49,617.09",Revenue,Dowhigh Ltd,132324
South Ribble Council,http://statistics.data.gov.uk/doc/local-authority/30UN,Development Enterprise & Comm Mgnt,Advertising,4842,Mindfulness introduction course x 1 place 250.00,29/03/2018,0000438649,250.00,Revenue,Dr Jan Goss,132524
South Ribble Council,http://statistics.data.gov.uk/doc/local-authority/30UN,Neighbourhood Admin & Support,Materials General,4040,"Orange deep tinted , printed `TRADE WASTE` Sack 18x29x34  35mu - 10,000  @  84.50/1,000 as per quote.",09/03/2018,0000438158,"1,064.70",Revenue,Durasak Ltd,132141
South Ribble Council,http://statistics.data.gov.uk/doc/local-authority/30UN,Neighbourhood Admin & Support,Materials General,4040,New Printed trade waste SRBC logo @  approx 60.00 repro/platemaking,09/03/2018,0000438158,60.00,Revenue,Durasak Ltd,132141
South Ribble Council,http://statistics.data.gov.uk/doc/local-authority/30UN,Regeneration,Capital Expenditure,C230,Supply and plant up 5x large planters,27/03/2018,0000438631,"1,308.33",Revenue,Duxburys Garden Centre Ltd,132279
South Ribble Council,http://statistics.data.gov.uk/doc/local-authority/30UN,Information Services,Peripherals,4260,,09/03/2018,0000438203,"2,391.62",Revenue,EE Ltd,131653
South Ribble Council,http://statistics.data.gov.uk/doc/local-authority/30UN,Information Services,Peripherals,4260,non-vat,09/03/2018,0000438203,11.96,Revenue,EE Ltd,131653
South Ribble Council,http://statistics.data.gov.uk/doc/local-authority/30UN,Development Enterprise & Comm Mgnt,Other Misc,4851,Dance from the heart audio equipment  1 QR15 Portable PA system with Two Wireless Mics & Bluetooth - 264.00 1 VHF Body,02/03/2018,0000437921,303.99,Revenue,Electro Supplies,132484
South Ribble Council,http://statistics.data.gov.uk/doc/local-authority/30UN,Legal,Legal,4821,BARRISTERS COSTS FOR A GOVERNANCE MATTER,16/03/2018,0000438354,"1,125.00",Revenue,ERIC OWEN,132110
South Ribble Council,http://statistics.data.gov.uk/doc/local-authority/30UN,Development Enterprise & Comm Mgnt,Other Misc,485A,Contribution to Central Lancashire Business Event 2017 at 499.00,21/03/2018,0000438422,499.00,Revenue,EVENTS NORTHERN LTD,130222
South Ribble Council,http://statistics.data.gov.uk/doc/local-authority/30UN,Healthy Communities,Advertising,4842,Development of Dance training video,23/03/2018,0000438574,250.00,Revenue,Everyonemedia Ltd,131539
South Ribble Council,http://statistics.data.gov.uk/doc/local-authority/30UN,Area 2 - Waste Transport/Eastern & Central Teams,Materials General,4040,1 POLE - CSW26TR - JFC10077 - BO,21/03/2018,0000438497,258.55,Revenue,F R SHARROCK LTD,00034539
South Ribble Council,http://statistics.data.gov.uk/doc/local-authority/30UN,Area 2 - Waste Transport/Eastern & Central Teams,Materials General,4040,"3 BLADES, 1 OIL FILTER, 1 AIR FILTER, 1 PRE-FILTER, 2 SPARK PLUGS - PMR19A2 JFC10211",27/03/2018,0000438573,100.00,Revenue,F R SHARROCK LTD,00034539
South Ribble Council,http://statistics.data.gov.uk/doc/local-authority/30UN,Area 2 - Waste Transport/Eastern & Central Teams,Materials General,4040,"3 BLADES, 1 OIL FILTER, 1 AIR FILTER, 1 PRE-FILTER, 2 SPARK PLUGS PMR21A3 JFC 10213",27/03/2018,0000438573,100.00,Revenue,F R SHARROCK LTD,00034539
South Ribble Council,http://statistics.data.gov.uk/doc/local-authority/30UN,Area 2 - Waste Transport/Eastern & Central Teams,Materials General,4040,"2 BLADES, 1 OIL FILTER, 1 AIR FILTER 1 PRE-FILTER 2 SPARK PLUGS PMR18A2 JFC10212",27/03/2018,0000438573,90.00,Revenue,F R SHARROCK LTD,00034539
South Ribble Council,http://statistics.data.gov.uk/doc/local-authority/30UN,Area 2 - Waste Transport/Eastern & Central Teams,Materials General,4040,"2 BLADES, 1 OIL FILTETR 1 AIR FILTER 1 PRE-FILTER, 2 SPARK PLUGS PMR26A3 JFC10214",27/03/2018,0000438573,19.91,Revenue,F R SHARROCK LTD,00034539
South Ribble Council,http://statistics.data.gov.uk/doc/local-authority/30UN,Area 2 - Waste Transport/Eastern & Central Teams,Other Misc,48GR,Recharge for Bin Handle Tags for Green Waste purchased from B&D Print,02/03/2018,0000438042,872.00,Revenue,FCC Environment Services (UK) Ltd,131612
South Ribble Council,http://statistics.data.gov.uk/doc/local-authority/30UN,Area 2 - Waste Transport/Eastern & Central Teams,External Contractors Charges,4570,ADDITIONAL CLINICAL WASTE COLLECTIONS FEBRUARY 2018,09/03/2018,0000438208,332.64,Revenue,FCC Environment Services (UK) Ltd,131612
South Ribble Council,http://statistics.data.gov.uk/doc/local-authority/30UN,Area 2 - Waste Transport/Eastern & Central Teams,Balance Sheet,0030,retention,09/03/2018,0000438208,-16.63,Revenue,FCC Environment Services (UK) Ltd,131612
South Ribble Council,http://statistics.data.gov.uk/doc/local-authority/30UN,Area 2 - Waste Transport/Eastern & Central Teams,External Contractors Charges,4570,RESIDUAL WASTE FEBRUARY 2018,16/03/2018,0000438278,"37,573.24",Revenue,FCC Environment Services (UK) Ltd,131612
South Ribble Council,http://statistics.data.gov.uk/doc/local-authority/30UN,Area 2 - Waste Transport/Eastern & Central Teams,External Contractors Charges,4570,DRY RECYCLABLE NON TERRACED FEBRUARY 2018,16/03/2018,0000438278,"38,477.88",Revenue,FCC Environment Services (UK) Ltd,131612
South Ribble Council,http://statistics.data.gov.uk/doc/local-authority/30UN,Area 2 - Waste Transport/Eastern & Central Teams,External Contractors Charges,4570,DRY RECYCLABLE TERRACED FEBRUARY 2018,16/03/2018,0000438278,"1,827.33",Revenue,FCC Environment Services (UK) Ltd,131612
South Ribble Council,http://statistics.data.gov.uk/doc/local-authority/30UN,Area 2 - Waste Transport/Eastern & Central Teams,External Contractors Charges,4570,ORGANIC WASTE NON TERRACED FEBRUARY 2018,16/03/2018,0000438278,"26,669.65",Revenue,FCC Environment Services (UK) Ltd,131612
South Ribble Council,http://statistics.data.gov.uk/doc/local-authority/30UN,Area 2 - Waste Transport/Eastern & Central Teams,External Contractors Charges,4570,SCHEDULE 2 PROPERTIES FEBRUARY 2018,16/03/2018,0000438278,"1,525.77",Revenue,FCC Environment Services (UK) Ltd,131612
South Ribble Council,http://statistics.data.gov.uk/doc/local-authority/30UN,Area 2 - Waste Transport/Eastern & Central Teams,External Contractors Charges,4570,COMMERCIAL WASTE FEBRUARY 2018,16/03/2018,0000438278,"5,977.35",Revenue,FCC Environment Services (UK) Ltd,131612
South Ribble Council,http://statistics.data.gov.uk/doc/local-authority/30UN,Area 2 - Waste Transport/Eastern & Central Teams,External Contractors Charges,4570,BULKY WASTE FEBRUARY 2018,16/03/2018,0000438278,826.32,Revenue,FCC Environment Services (UK) Ltd,131612
South Ribble Council,http://statistics.data.gov.uk/doc/local-authority/30UN,Area 2 - Waste Transport/Eastern & Central Teams,External Contractors Charges,4570,WEEE COLLECTIONS FEBRUARY 2018,16/03/2018,0000438278,308.96,Revenue,FCC Environment Services (UK) Ltd,131612
South Ribble Council,http://statistics.data.gov.uk/doc/local-authority/30UN,Area 2 - Waste Transport/Eastern & Central Teams,External Contractors Charges,4570,CLINICAL WASTE COLLECTIONS FEBRUARY 2018,16/03/2018,0000438278,526.16,Revenue,FCC Environment Services (UK) Ltd,131612
South Ribble Council,http://statistics.data.gov.uk/doc/local-authority/30UN,Area 2 - Waste Transport/Eastern & Central Teams,External Contractors Charges,4570,ADDITIONAL PROPERTIES FEBRUARY 2018,16/03/2018,0000438278,"1,215.16",Revenue,FCC Environment Services (UK) Ltd,131612
South Ribble Council,http://statistics.data.gov.uk/doc/local-authority/30UN,Area 2 - Waste Transport/Eastern & Central Teams,External Contractors Charges,4570,REPLACEMENT BINS FEBRUARY 2018,16/03/2018,0000438278,"5,000.00",Revenue,FCC Environment Services (UK) Ltd,131612
South Ribble Council,http://statistics.data.gov.uk/doc/local-authority/30UN,Area 2 - Waste Transport/Eastern & Central Teams,Balance Sheet,0030,retension refuse,16/03/2018,0000438278,"-2,397.65",Revenue,FCC Environment Services (UK) Ltd,131612
South Ribble Council,http://statistics.data.gov.uk/doc/local-authority/30UN,Area 2 - Waste Transport/Eastern & Central Teams,Balance Sheet,0030,retention recycling,16/03/2018,0000438278,"-3,348.74",Revenue,FCC Environment Services (UK) Ltd,131612
South Ribble Council,http://statistics.data.gov.uk/doc/local-authority/30UN,Information Services,Peripherals,4248,Annual licence renewal for period 23/03/18 - 22/03/19,29/03/2018,0000438802,"23,616.00",Revenue,FIRMSTEP,00114022
South Ribble Council,http://statistics.data.gov.uk/doc/local-authority/30UN,Development Enterprise & Comm Mgnt,Other Expenses,4630,"Garmin Vivokis 120.00 27.25 20% 3,270.00 Garmin VivoHub 2 5.00 145.99 20% 729.95 inc 1 Year Active Ants System",23/03/2018,0000438611,"3,999.95",Revenue,Flexi Digital Ltd,132521
South Ribble Council,http://statistics.data.gov.uk/doc/local-authority/30UN,Regeneration,Other Misc,4851,Social Integration Fund � Taste of Leyland food demonstration,27/03/2018,0000438650,"1,000.00",Revenue,Foodwise Training Ltd,132357
South Ribble Council,http://statistics.data.gov.uk/doc/local-authority/30UN,HR & Communications,Training Expense-Course Fees,1405,Training Course organised by NAME REDACTED 24/01/2018,16/03/2018,0000438321,500.00,Revenue,FORBES SOLICITORS,00102018
South Ribble Council,http://statistics.data.gov.uk/doc/local-authority/30UN,Legal,Legal,4821,Barristers (NAME REDACTED) costs for a Licensing appeal,07/03/2018,0000438085,850.00,Revenue,Freddie Humphreys,132470
South Ribble Council,http://statistics.data.gov.uk/doc/local-authority/30UN,Regeneration,Capital Expenditure,C234,1 x toner number 761 in yellow @ 144.90  1 x toner number 761 in black @130.03  1 x toner number 764 in blue @ 93.98  ,09/03/2018,0000437730,462.89,Revenue,GCS UK ASSOCIATES LTD,130671
South Ribble Council,http://statistics.data.gov.uk/doc/local-authority/30UN,Shared Financial Services,Financial,4816,Jan,16/03/2018,0000437609,647.70,Revenue,GLOBAL PAYMENTS (GPUK LLP),131178
South Ribble Council,http://statistics.data.gov.uk/doc/local-authority/30UN,Shared Financial Services,Financial,4816,,16/03/2018,0000437609,7.00,Revenue,GLOBAL PAYMENTS (GPUK LLP),131178
South Ribble Council,http://statistics.data.gov.uk/doc/local-authority/30UN,Shared Financial Services,Financial,4816,Jan-18,16/03/2018,0000437610,"2,587.51",Revenue,GLOBAL PAYMENTS (GPUK LLP),131178
South Ribble Council,http://statistics.data.gov.uk/doc/local-authority/30UN,Shared Financial Services,Financial,4816,,16/03/2018,0000437610,7.00,Revenue,GLOBAL PAYMENTS (GPUK LLP),131178
South Ribble Council,http://statistics.data.gov.uk/doc/local-authority/30UN,Shared Financial Services,Financial,4816,Jan-18,16/03/2018,0000437611,"1,802.07",Revenue,GLOBAL PAYMENTS (GPUK LLP),131178
South Ribble Council,http://statistics.data.gov.uk/doc/local-authority/30UN,Shared Financial Services,Financial,4816,,16/03/2018,0000437611,7.00,Revenue,GLOBAL PAYMENTS (GPUK LLP),131178
South Ribble Council,http://statistics.data.gov.uk/doc/local-authority/30UN,Shared Financial Services,Financial,4816,,29/03/2018,0000438814,316.18,Revenue,GLOBAL PAYMENTS (GPUK LLP),131178
South Ribble Council,http://statistics.data.gov.uk/doc/local-authority/30UN,Shared Financial Services,Financial,4816,,29/03/2018,0000438814,7.00,Revenue,GLOBAL PAYMENTS (GPUK LLP),131178
South Ribble Council,http://statistics.data.gov.uk/doc/local-authority/30UN,Shared Financial Services,Financial,4816,,29/03/2018,0000438815,"2,730.94",Revenue,GLOBAL PAYMENTS (GPUK LLP),131178
South Ribble Council,http://statistics.data.gov.uk/doc/local-authority/30UN,Shared Financial Services,Financial,4816,,29/03/2018,0000438815,7.00,Revenue,GLOBAL PAYMENTS (GPUK LLP),131178
South Ribble Council,http://statistics.data.gov.uk/doc/local-authority/30UN,Shared Financial Services,Financial,4816,,29/03/2018,0000438816,"3,074.08",Revenue,GLOBAL PAYMENTS (GPUK LLP),131178
South Ribble Council,http://statistics.data.gov.uk/doc/local-authority/30UN,Shared Financial Services,Financial,4816,,29/03/2018,0000438816,7.00,Revenue,GLOBAL PAYMENTS (GPUK LLP),131178
South Ribble Council,http://statistics.data.gov.uk/doc/local-authority/30UN,Housing,Contributions,4730,Gas servicing for winter warmth scheme,09/03/2018,0000438216,675.00,Revenue,GOS Heating Ltd,131387
South Ribble Council,http://statistics.data.gov.uk/doc/local-authority/30UN,Housing,Contributions,4730,Gas appliance repairs for winter warmth scheme,14/03/2018,0000438265,419.15,Revenue,GOS Heating Ltd,131387
South Ribble Council,http://statistics.data.gov.uk/doc/local-authority/30UN,Development Enterprise & Comm Mgnt,Peripherals,4243,"Grace - Risk Management Version Annual Licence Fee 2,995.00 Plus VAT",02/03/2018,0000437892,"2,995.00",Revenue,Grace Governance Solutions Ltd,132207
South Ribble Council,http://statistics.data.gov.uk/doc/local-authority/30UN,Development Enterprise & Comm Mgnt,Peripherals,4243,Grace - Business Continuity Version Annual Licence Fee 395.00  Plus VAT,02/03/2018,0000437892,395.00,Revenue,Grace Governance Solutions Ltd,132207
South Ribble Council,http://statistics.data.gov.uk/doc/local-authority/30UN,Development Enterprise & Comm Mgnt,Peripherals,4243,Grace - Emergency Planning Version Annual Licence Fee 395.00 Plus VAT,02/03/2018,0000437892,395.00,Revenue,Grace Governance Solutions Ltd,132207
South Ribble Council,http://statistics.data.gov.uk/doc/local-authority/30UN,Shared Financial Services,Professional Fees,4512,Main Audit Fee for 2017/18,09/03/2018,0000438210,"10,981.00",Revenue,Grant Thornton UK LLP,130718
South Ribble Council,http://statistics.data.gov.uk/doc/local-authority/30UN,HR & Communications,Training Expense-Course Fees,1400,ACCOMMODATION WITH BED AND BREAKFAST FOR NAMES REDACTED FOR 2 NIGHTS EACH IN FEBRUARY 2018,14/03/2018,0000438148,280.00,Revenue,Grwp Llandrillo Menai,132364
South Ribble Council,http://statistics.data.gov.uk/doc/local-authority/30UN,HR & Communications,Training Expense-Course Fees,1400,ACCOMMODATION WITH BED AND BREAKFAST FOR NAMES REDACTED FOR 2 NIGHTS EACH IN MAY 2018,14/03/2018,0000438148,280.00,Revenue,Grwp Llandrillo Menai,132364
South Ribble Council,http://statistics.data.gov.uk/doc/local-authority/30UN,Area 2 - Waste Transport/Eastern & Central Teams,Materials General,4040,ASSORTED FILTERS (IMPREST STOCK),09/03/2018,0000438243,434.05,Revenue,H & J SERVICES LTD,00114446
South Ribble Council,http://statistics.data.gov.uk/doc/local-authority/30UN,Area 3 - Parks/Leyland East West,Grounds Maint Cntrctrs Chgs,4657,1x Hag8024752 - Blue Plastic Roof Assembly for wooden pole unimini.,23/03/2018,0000438599,440.00,Revenue,HAGS SMP LTD,130596
South Ribble Council,http://statistics.data.gov.uk/doc/local-authority/30UN,Area 3 - Parks/Leyland East West,Grounds Maint Cntrctrs Chgs,4657,Delivery,23/03/2018,0000438599,50.00,Revenue,HAGS SMP LTD,130596
South Ribble Council,http://statistics.data.gov.uk/doc/local-authority/30UN,Area 3 - Parks/Leyland East West,Grounds Maint Cntrctrs Chgs,4657,2 X HAG8013482 RECTANGULAR PANELS WITH GRIPS @ 375.00,27/03/2018,0000438721,750.00,Revenue,HAGS SMP LTD,130596
South Ribble Council,http://statistics.data.gov.uk/doc/local-authority/30UN,Area 3 - Parks/Leyland East West,Grounds Maint Cntrctrs Chgs,4657,1 X HAG8013483 TRIANGULAR PANEL WITH GRIPS @ 310.00,27/03/2018,0000438721,310.00,Revenue,HAGS SMP LTD,130596
South Ribble Council,http://statistics.data.gov.uk/doc/local-authority/30UN,Area 3 - Parks/Leyland East West,Grounds Maint Cntrctrs Chgs,4657,1 X HAG8014290 FIXING PACK @ 95.00,27/03/2018,0000438721,95.00,Revenue,HAGS SMP LTD,130596
South Ribble Council,http://statistics.data.gov.uk/doc/local-authority/30UN,Area 3 - Parks/Leyland East West,Grounds Maint Cntrctrs Chgs,4657,DELIVERY CHARGE,27/03/2018,0000438721,60.00,Revenue,HAGS SMP LTD,130596
South Ribble Council,http://statistics.data.gov.uk/doc/local-authority/30UN,Housing,Cap Grant- Improve Grants,C570,"DFG WORKS TO PROPERTY AS PER QUOTE AT ADDRESS REDACTED WORK 27,653.41 CLIENT CONTRIBUTION",07/03/2018,0000438071,"9,817.80",Revenue,Hall Building Contractors Ltd,131423
South Ribble Council,http://statistics.data.gov.uk/doc/local-authority/30UN,Housing,Cap Expend Other,C750,DFG WORKS TO BATHROOM AND RAMP ATADDRESS REDACTED COST 8683.00,23/03/2018,0000438603,"8,683.00",Revenue,Hall Building Contractors Ltd,131423
South Ribble Council,http://statistics.data.gov.uk/doc/local-authority/30UN,Neighbourhood Admin & Support,Vehicle Running Costs,3132,"12,000 litres DIESEL (@0.9673 pence per litre)",16/03/2018,0000438325,"11,629.20",Revenue,Hall Fuels trading name of WFL (UK) Ltd,00116758
South Ribble Council,http://statistics.data.gov.uk/doc/local-authority/30UN,Chief Executive`s Management,Rents,2402,Hire of Room on 14th March 2018 Contact: NAME REDACTED Ref: CEO Recruitment,21/03/2018,0000438389,676.25,Revenue,Hallmark Hotel Preston Leyland,00090117
South Ribble Council,http://statistics.data.gov.uk/doc/local-authority/30UN,Planning,Publications,4140,5 x Planning Resource Renewal,02/03/2018,0000437951,595.00,Revenue,HAYMARKET MEDIA GROUP LTD,00023346
South Ribble Council,http://statistics.data.gov.uk/doc/local-authority/30UN,Property Services,Rep & Maint Premises,2020,"ACCESS CONTROL ADDITIONS - PRIORITY DOORS. (AS PER YOUR QUOTE FEBRUARY 2018) PHASE 2 (A36, A37, A38)",16/03/2018,0000438357,"2,452.64",Revenue,HFX LTD,00023728
South Ribble Council,http://statistics.data.gov.uk/doc/local-authority/30UN,Property Services,Rep & Maint Premises,2020,"ACCESS CONTROL ADDITIONS - PRIORITY DOORS (AS PER YOUR QUOTE FEBRUARY 2018) A39, A42, A43 HARDWARE",16/03/2018,0000438358,"2,443.20",Revenue,HFX LTD,00023728
South Ribble Council,http://statistics.data.gov.uk/doc/local-authority/30UN,Information Services,Peripherals,4248,HFX System Maintenance Support Contract for period 03/04/18 - 02/04/19,21/03/2018,0000438402,"4,276.59",Revenue,HFX LTD,00023728
South Ribble Council,http://statistics.data.gov.uk/doc/local-authority/30UN,Shared Financial Services,Balance Sheet,0140,,14/03/2018,0000437565,653.20,Revenue,HM REVENUE & CUSTOMS,00024837
South Ribble Council,http://statistics.data.gov.uk/doc/local-authority/30UN,Shared Financial Services,Balance Sheet,0140,,14/03/2018,0000437694,"1,715.50",Revenue,HM REVENUE & CUSTOMS,00024837
South Ribble Council,http://statistics.data.gov.uk/doc/local-authority/30UN,HR & Communications,Training Expense-Course Fees,1402,NAME REDACTED TO ATTEND THE PEST CONTROL SALES & MARKETING COURSE ON 15 & 16 MARCH 2018  VENUE,21/03/2018,0000438453,250.00,Revenue,Hyndburn Borough Council,131625
South Ribble Council,http://statistics.data.gov.uk/doc/local-authority/30UN,HR & Communications,Training Expense-Course Fees,1402,NAME REDACTED TO ATTEND PEST CONTROL SALES AND MANAGING COURSE ON 15 & 16 MARCH 2018 VENUE,21/03/2018,0000438454,250.00,Revenue,Hyndburn Borough Council,131625
South Ribble Council,http://statistics.data.gov.uk/doc/local-authority/30UN,Revenues Plus,Professional Fees,4510,"RV finder - Aston Way, Leyland and Walton Summit Road, Bamber Bridge",02/03/2018,0000438025,825.00,Revenue,Inform CPI Ltd,131666
South Ribble Council,http://statistics.data.gov.uk/doc/local-authority/30UN,Revenues Plus,Professional Fees,4510,"RV finder - Carver Hey, Whalebone Farm and Argos",14/03/2018,0000438324,"2,575.00",Revenue,Inform CPI Ltd,131666
South Ribble Council,http://statistics.data.gov.uk/doc/local-authority/30UN,Revenues Plus,Professional Fees,4510,Livery at Marsh Farm and Coupe Green School,21/03/2018,0000438480,670.00,Revenue,Inform CPI Ltd,131666
South Ribble Council,http://statistics.data.gov.uk/doc/local-authority/30UN,Revenues Plus,Professional Fees,4510,RV Finder Blackburn WWTW Gregsons Farm 61/63 Liverpool Rd,29/03/2018,0000438791,"7,995.00",Revenue,Inform CPI Ltd,131666
South Ribble Council,http://statistics.data.gov.uk/doc/local-authority/30UN,Revenues Plus,Professional Fees,4510,Blackburn WWTW,29/03/2018,0000438792,"2,600.00",Revenue,Inform CPI Ltd,131666
South Ribble Council,http://statistics.data.gov.uk/doc/local-authority/30UN,HR & Communications,Capital Expenditure,C234,Performance and Project Management System,21/03/2018,0000438522,"40,000.00",Revenue,InPhase Limited,132452
South Ribble Council,http://statistics.data.gov.uk/doc/local-authority/30UN,Housing,Cap Grant- Improve Grants,C570,GRANT PAYMENT TOWARDS THE COST OF SUPPLY  EXTERNAL WALL INSULATION TO ADDRESS REDACTED,29/03/2018,0000438775,"4,000.00",Revenue,Insulated Homes Ltd,132503
South Ribble Council,http://statistics.data.gov.uk/doc/local-authority/30UN,Area 2 - Waste Transport/Eastern & Central Teams,Contract Hire & Lease Costs,3212,HIRE OF TRANSPORTER VAN (12/12/17 - 9/1/18),27/03/2018,0000438532,599.70,Revenue,Intack Self Drive Ltd,132314
South Ribble Council,http://statistics.data.gov.uk/doc/local-authority/30UN,Area 2 - Waste Transport/Eastern & Central Teams,Contract Hire & Lease Costs,3212,HIRE OF TRANSPORTER VAN (9/1/18 - 24/1/18),27/03/2018,0000438533,321.27,Revenue,Intack Self Drive Ltd,132314
South Ribble Council,http://statistics.data.gov.uk/doc/local-authority/30UN,Regeneration,Other Misc,4851,"External Partner Contributions to MH:2K (Preston City Council and Preston, Chorley/South Ribble CCGs)",07/03/2018,0000437908,"4,000.00",Revenue,Involve Foundation,132416
South Ribble Council,http://statistics.data.gov.uk/doc/local-authority/30UN,Area 1 - Penwortham Western Parishes,Materials General,4040,2 X GRAB BAGS - ROCK SALT,21/03/2018,0000438149,340.00,Revenue,J & J ASHCROFT LTD,00087515
South Ribble Council,http://statistics.data.gov.uk/doc/local-authority/30UN,Healthy Communities,Advertising,4842,Active Schools Coaching between February and March,29/03/2018,0000438652,750.00,Revenue,Jacqueline Lowe,132083
South Ribble Council,http://statistics.data.gov.uk/doc/local-authority/30UN,Property Services,Rep & Maint Premises,2020,Annual Contract for 2017-2018 schedule ref 1196  dated 24.4.2017 ADDRESS REDACTED,27/03/2018,0000438394,145.00,Revenue,JAMES MERCER GROUP LTD,00028587
South Ribble Council,http://statistics.data.gov.uk/doc/local-authority/30UN,Property Services,Rep & Maint Premises,2020,Annual Contract for 2017- 2018 schedule ref 1196 dated 24.4.2017 ADDRESS REDACTED,27/03/2018,0000438394,145.00,Revenue,JAMES MERCER GROUP LTD,00028587
South Ribble Council,http://statistics.data.gov.uk/doc/local-authority/30UN,Property Services,Rep & Maint Premises,2020,Annual Contract for 2017- 2018 schedule ref 1196 dated 24.4.2017 ADDRESS REDACTED,27/03/2018,0000438394,145.00,Revenue,JAMES MERCER GROUP LTD,00028587
South Ribble Council,http://statistics.data.gov.uk/doc/local-authority/30UN,Property Services,Rep & Maint Premises,2020,Annual Contract for 2017- 2018 schedule ref 1196 dated 24.4.2017 ADDRESS REDACTED,27/03/2018,0000438394,145.00,Revenue,JAMES MERCER GROUP LTD,00028587
South Ribble Council,http://statistics.data.gov.uk/doc/local-authority/30UN,Property Services,Rep & Maint Premises,2020,Annual Contract for 2017- 2018 schedule ref 1196 dated 24.4.2017 ADDRESS REDACTED,27/03/2018,0000438394,145.00,Revenue,JAMES MERCER GROUP LTD,00028587
South Ribble Council,http://statistics.data.gov.uk/doc/local-authority/30UN,Property Services,Rep & Maint Premises,2020,2017 / 2018 contract for the maintenance of  the Trend BMS system,27/03/2018,0000438608,390.00,Revenue,JBC CONTROL SYSTEM,130816
South Ribble Council,http://statistics.data.gov.uk/doc/local-authority/30UN,HR & Communications,Agency Fees,1121,WORK CARRIED OUT BY NAME REDACTED FROM 1ST APRIL 2017 UNTIL END OF CONTRACT,07/03/2018,0000438092,"15,775.80",Revenue,Joanne Platt Associates Ltd,132222
South Ribble Council,http://statistics.data.gov.uk/doc/local-authority/30UN,Regeneration,Capital Expenditure,C230,final cost leyland loop,29/03/2018,0000438393,"4,233.00",Revenue,John Wade Groundworks Ltd t/a Wade Group,131568
South Ribble Council,http://statistics.data.gov.uk/doc/local-authority/30UN,Regeneration,Capital Expenditure,C230,"Walton Le Dale, Community centre car park improvements",29/03/2018,0000438794,"62,962.31",Revenue,John Wade Groundworks Ltd t/a Wade Group,131568
South Ribble Council,http://statistics.data.gov.uk/doc/local-authority/30UN,Planning,Advertising,4841,Press notices for planning applications 2017/18,14/03/2018,0000438064,486.00,Revenue,JOHNSTON PUBLISHING (NORTH WEST),00011345
South Ribble Council,http://statistics.data.gov.uk/doc/local-authority/30UN,Planning,Advertising,4841,Press notices for planning applications 2017/18,14/03/2018,0000438151,594.00,Revenue,JOHNSTON PUBLISHING (NORTH WEST),00011345
South Ribble Council,http://statistics.data.gov.uk/doc/local-authority/30UN,Planning,Advertising,4841,Press notices for planning applications 2017/18,14/03/2018,0000438220,540.00,Revenue,JOHNSTON PUBLISHING (NORTH WEST),00011345
South Ribble Council,http://statistics.data.gov.uk/doc/local-authority/30UN,Planning,Advertising,4841,Press notices for planning applications 2017/18,14/03/2018,0000438232,540.00,Revenue,JOHNSTON PUBLISHING (NORTH WEST),00011345
South Ribble Council,http://statistics.data.gov.uk/doc/local-authority/30UN,Revenues Plus,Advertising,4841,South Ribble Borough Council - Council Tax Advert for 2018-19 1 Insert - Lancashire Evening Post - Public Notices on 9/3/2018,14/03/2018,0000438268,"1,215.00",Revenue,JOHNSTON PUBLISHING (NORTH WEST),00011345
South Ribble Council,http://statistics.data.gov.uk/doc/local-authority/30UN,Planning,Advertising,4841,Press notices for planning applications 2017/18,27/03/2018,0000438338,702.00,Revenue,JOHNSTON PUBLISHING (NORTH WEST),00011345
South Ribble Council,http://statistics.data.gov.uk/doc/local-authority/30UN,Planning,Advertising,4841,Press notices for planning applications 2017/18,29/03/2018,0000438813,540.00,Revenue,JOHNSTON PUBLISHING (NORTH WEST),00011345
South Ribble Council,http://statistics.data.gov.uk/doc/local-authority/30UN,Healthy Communities,Grants to Vol Bodies,4711,grant,21/03/2018,0000438518,250.00,Revenue,Jump UK Sports Ltd,131960
South Ribble Council,http://statistics.data.gov.uk/doc/local-authority/30UN,Area 3 - Parks/Leyland East West,External Contractors Charges,4570,"TREE REMOVAL WORKS AT BLAYDIKE MOSS, LEYLAND",29/03/2018,0000437666,800.00,Revenue,Ken Linford Gardencare Limited,132464
South Ribble Council,http://statistics.data.gov.uk/doc/local-authority/30UN,Area 3 - Parks/Leyland East West,External Contractors Charges,4570,TREE WORKS AT MORLAND AVENUE LOSTOCK HALL,23/03/2018,0000437790,"2,550.00",Revenue,Ken Linford Gardencare Limited,132464
South Ribble Council,http://statistics.data.gov.uk/doc/local-authority/30UN,Area 3 - Parks/Leyland East West,External Contractors Charges,4570,ADDITIONAL TREE WORKS - MORLAND AVENUE,23/03/2018,0000438285,"1,300.00",Revenue,Ken Linford Gardencare Limited,132464
South Ribble Council,http://statistics.data.gov.uk/doc/local-authority/30UN,Area 3 - Parks/Leyland East West,External Contractors Charges,4570,Tree works at ADDRESS REDACTED,21/03/2018,0000438484,"1,100.00",Revenue,Ken Linford Gardencare Limited,132464
South Ribble Council,http://statistics.data.gov.uk/doc/local-authority/30UN,Planning,Consultancy Fees,4541,Work on viability assessment for Wesley Street Mill. To be recharged to Countryside.,14/03/2018,0000438049,"2,000.00",Revenue,Keppie Massie,131948
South Ribble Council,http://statistics.data.gov.uk/doc/local-authority/30UN,Planning,Professional Fees,4510,Viability assessment for 07/2017/2989/FUL (St Marys Village Hall).,21/03/2018,0000438288,"2,250.00",Revenue,Keppie Massie,131948
South Ribble Council,http://statistics.data.gov.uk/doc/local-authority/30UN,Area 3 - Parks/Leyland East West,Materials General,4040,1 no. KEFKM 09032 H-K 35 FRONT SWEEPING MACHINE 90cm WORKING WIDTH,02/03/2018,0000438015,"1,150.00",Revenue,Kersten (UK) Ltd,132489
South Ribble Council,http://statistics.data.gov.uk/doc/local-authority/30UN,Area 3 - Parks/Leyland East West,Materials General,4040,1 NO. KGUSPL 090 FRONT BRUSH GUARD 90CM,02/03/2018,0000438015,165.00,Revenue,Kersten (UK) Ltd,132489
South Ribble Council,http://statistics.data.gov.uk/doc/local-authority/30UN,Area 3 - Parks/Leyland East West,Materials General,4040,"CARRIAGE, POST AND PACKING FOR ABOVE",02/03/2018,0000438015,75.00,Revenue,Kersten (UK) Ltd,132489
South Ribble Council,http://statistics.data.gov.uk/doc/local-authority/30UN,Property Services,Rep & Maint Premises,2020,Gregson Lane Sports Pavilion,29/03/2018,0000438790,46.00,Revenue,KNOWSLEY BLD & ENVIRONMENTAL SERVICES LT,00072656
South Ribble Council,http://statistics.data.gov.uk/doc/local-authority/30UN,Property Services,Rep & Maint Premises,2020,Herne Avenue Sports Pavilion,29/03/2018,0000438790,46.00,Revenue,KNOWSLEY BLD & ENVIRONMENTAL SERVICES LT,00072656
South Ribble Council,http://statistics.data.gov.uk/doc/local-authority/30UN,Property Services,Rep & Maint Premises,2020,Higher Walton Sports Pavilion,29/03/2018,0000438790,46.00,Revenue,KNOWSLEY BLD & ENVIRONMENTAL SERVICES LT,00072656
South Ribble Council,http://statistics.data.gov.uk/doc/local-authority/30UN,Property Services,Rep & Maint Premises,2020,Holme Sports Pavilion,29/03/2018,0000438790,46.00,Revenue,KNOWSLEY BLD & ENVIRONMENTAL SERVICES LT,00072656
South Ribble Council,http://statistics.data.gov.uk/doc/local-authority/30UN,Property Services,Rep & Maint Premises,2020,Hutton Sports Pavilion,29/03/2018,0000438790,46.00,Revenue,KNOWSLEY BLD & ENVIRONMENTAL SERVICES LT,00072656
South Ribble Council,http://statistics.data.gov.uk/doc/local-authority/30UN,Property Services,Rep & Maint Premises,2020,Kingsfold Sports Pavilion,29/03/2018,0000438790,53.50,Revenue,KNOWSLEY BLD & ENVIRONMENTAL SERVICES LT,00072656
South Ribble Council,http://statistics.data.gov.uk/doc/local-authority/30UN,Property Services,Rep & Maint Premises,2020,Worden Park Long Sports Pavilion,29/03/2018,0000438790,46.00,Revenue,KNOWSLEY BLD & ENVIRONMENTAL SERVICES LT,00072656
South Ribble Council,http://statistics.data.gov.uk/doc/local-authority/30UN,Property Services,Rep & Maint Premises,2020,Moss Side Sports Pavilion,29/03/2018,0000438790,53.50,Revenue,KNOWSLEY BLD & ENVIRONMENTAL SERVICES LT,00072656
South Ribble Council,http://statistics.data.gov.uk/doc/local-authority/30UN,Property Services,Rep & Maint Premises,2020,Penwortham Holme Sports Pavilion,29/03/2018,0000438790,46.00,Revenue,KNOWSLEY BLD & ENVIRONMENTAL SERVICES LT,00072656
South Ribble Council,http://statistics.data.gov.uk/doc/local-authority/30UN,Property Services,Rep & Maint Premises,2020,St Cuthberts Sports Pavilion,29/03/2018,0000438790,46.00,Revenue,KNOWSLEY BLD & ENVIRONMENTAL SERVICES LT,00072656
South Ribble Council,http://statistics.data.gov.uk/doc/local-authority/30UN,Property Services,Rep & Maint Premises,2020,Withy Grove Sports Pavilion,29/03/2018,0000438790,53.50,Revenue,KNOWSLEY BLD & ENVIRONMENTAL SERVICES LT,00072656
South Ribble Council,http://statistics.data.gov.uk/doc/local-authority/30UN,Property Services,Rep & Maint Premises,2020,Holland House Farm Sports Pavilion,29/03/2018,0000438790,46.00,Revenue,KNOWSLEY BLD & ENVIRONMENTAL SERVICES LT,00072656
South Ribble Council,http://statistics.data.gov.uk/doc/local-authority/30UN,Property Services,Rep & Maint Premises,2020,The Derby Wing Worden Park,29/03/2018,0000438790,43.50,Revenue,KNOWSLEY BLD & ENVIRONMENTAL SERVICES LT,00072656
South Ribble Council,http://statistics.data.gov.uk/doc/local-authority/30UN,Property Services,Rep & Maint Premises,2020,Welcome Hall Carr treet Community Centre,29/03/2018,0000438790,43.50,Revenue,KNOWSLEY BLD & ENVIRONMENTAL SERVICES LT,00072656
South Ribble Council,http://statistics.data.gov.uk/doc/local-authority/30UN,Property Services,Rep & Maint Premises,2020,Kingsfold Community Centre,29/03/2018,0000438790,43.50,Revenue,KNOWSLEY BLD & ENVIRONMENTAL SERVICES LT,00072656
South Ribble Council,http://statistics.data.gov.uk/doc/local-authority/30UN,Property Services,Rep & Maint Premises,2020,Higher Walton Community Centre,29/03/2018,0000438790,43.50,Revenue,KNOWSLEY BLD & ENVIRONMENTAL SERVICES LT,00072656
South Ribble Council,http://statistics.data.gov.uk/doc/local-authority/30UN,Property Services,Rep & Maint Premises,2020,Moss Side Community Centre,29/03/2018,0000438790,43.50,Revenue,KNOWSLEY BLD & ENVIRONMENTAL SERVICES LT,00072656
South Ribble Council,http://statistics.data.gov.uk/doc/local-authority/30UN,Property Services,Rep & Maint Premises,2020,Worden Arts & Craft Centre,29/03/2018,0000438790,58.50,Revenue,KNOWSLEY BLD & ENVIRONMENTAL SERVICES LT,00072656
South Ribble Council,http://statistics.data.gov.uk/doc/local-authority/30UN,Property Services,Rep & Maint Premises,2020,Leyland Market Indoor market,29/03/2018,0000438790,43.50,Revenue,KNOWSLEY BLD & ENVIRONMENTAL SERVICES LT,00072656
South Ribble Council,http://statistics.data.gov.uk/doc/local-authority/30UN,Property Services,Rep & Maint Premises,2020,Hurst Grange Park,29/03/2018,0000438790,43.50,Revenue,KNOWSLEY BLD & ENVIRONMENTAL SERVICES LT,00072656
South Ribble Council,http://statistics.data.gov.uk/doc/local-authority/30UN,Property Services,Rep & Maint Premises,2020,Cross Roads Toilets Worden Park,29/03/2018,0000438790,23.00,Revenue,KNOWSLEY BLD & ENVIRONMENTAL SERVICES LT,00072656
South Ribble Council,http://statistics.data.gov.uk/doc/local-authority/30UN,Property Services,Rep & Maint Premises,2020,Hope Terrace Toilets Lostock Hall,29/03/2018,0000438790,23.00,Revenue,KNOWSLEY BLD & ENVIRONMENTAL SERVICES LT,00072656
South Ribble Council,http://statistics.data.gov.uk/doc/local-authority/30UN,Property Services,Rep & Maint Premises,2020,Longton Brickcroft Longton,29/03/2018,0000438790,26.00,Revenue,KNOWSLEY BLD & ENVIRONMENTAL SERVICES LT,00072656
South Ribble Council,http://statistics.data.gov.uk/doc/local-authority/30UN,Property Services,Rep & Maint Premises,2020,Play Ground Public Toilets Worden Park,29/03/2018,0000438790,23.00,Revenue,KNOWSLEY BLD & ENVIRONMENTAL SERVICES LT,00072656
South Ribble Council,http://statistics.data.gov.uk/doc/local-authority/30UN,Property Services,Rep & Maint Premises,2020,South Ribble Museum,29/03/2018,0000438790,26.00,Revenue,KNOWSLEY BLD & ENVIRONMENTAL SERVICES LT,00072656
South Ribble Council,http://statistics.data.gov.uk/doc/local-authority/30UN,Property Services,Rep & Maint Premises,2020,Withy Grove Public Toilets Bamber Bridge,29/03/2018,0000438790,23.00,Revenue,KNOWSLEY BLD & ENVIRONMENTAL SERVICES LT,00072656
South Ribble Council,http://statistics.data.gov.uk/doc/local-authority/30UN,Property Services,Rep & Maint Premises,2020,Civic Centre Leyland,29/03/2018,0000438790,334.50,Revenue,KNOWSLEY BLD & ENVIRONMENTAL SERVICES LT,00072656
South Ribble Council,http://statistics.data.gov.uk/doc/local-authority/30UN,Property Services,Rep & Maint Premises,2020,Moss Side Depot,29/03/2018,0000438790,112.50,Revenue,KNOWSLEY BLD & ENVIRONMENTAL SERVICES LT,00072656
South Ribble Council,http://statistics.data.gov.uk/doc/local-authority/30UN,Property Services,Rep & Maint Premises,2020,Longton Sports Pavilion,29/03/2018,0000438790,46.00,Revenue,KNOWSLEY BLD & ENVIRONMENTAL SERVICES LT,00072656
South Ribble Council,http://statistics.data.gov.uk/doc/local-authority/30UN,Property Services,Rep & Maint Premises,2020,Much Hoole Sports Pavilion#,29/03/2018,0000438790,46.00,Revenue,KNOWSLEY BLD & ENVIRONMENTAL SERVICES LT,00072656
South Ribble Council,http://statistics.data.gov.uk/doc/local-authority/30UN,Area 2 - Waste Transport/Eastern & Central Teams,Materials General,4040,1000 LITRES HYDRAULIC OIL 32 (@0.73 pence per litre),02/03/2018,0000437887,730.00,Revenue,LANCASHIRE OILS LTD,131167
South Ribble Council,http://statistics.data.gov.uk/doc/local-authority/30UN,Area 2 - Waste Transport/Eastern & Central Teams,External Contractors Charges,4570,SPEC REPAIR - JFC10130 - PJ62UCH - TH,23/03/2018,0000438610,590.00,Revenue,Lancashire Waste Services Limited,131510
South Ribble Council,http://statistics.data.gov.uk/doc/local-authority/30UN,Area 2 - Waste Transport/Eastern & Central Teams,External Contractors Charges,4570,SPEC REPAIR - JFC10298 - PJ62UCG - TH,27/03/2018,0000438734,"1,113.25",Revenue,Lancashire Waste Services Limited,131510
South Ribble Council,http://statistics.data.gov.uk/doc/local-authority/30UN,Area 2 - Waste Transport/Eastern & Central Teams,Contractors Charges 5,5412,"Quarter 3 Disposal Fee, Landfill Tax & 5% Admin Fee.",09/03/2018,0000438008,"56,984.35",Revenue,LANCS COUNTY COUNCIL,00041645
South Ribble Council,http://statistics.data.gov.uk/doc/local-authority/30UN,Housing,Cap Grant- Improve Grants,C570,SUPPLY AND INSTALL LIFT AT ADDRESS REDACTED AS PER YOUR QUOTE OF - 11535.00,09/03/2018,0000438238,"11,535.00",Revenue,LANCS COUNTY COUNCIL,00041645
South Ribble Council,http://statistics.data.gov.uk/doc/local-authority/30UN,Housing,Cap Grant- Improve Grants,C570,SUPPLY AND INSTALL GERBERIT ADDRESS REDACTED AS PER YOUR QUOTE OF - 3576.00,27/03/2018,0000438743,"3,576.00",Revenue,LANCS COUNTY COUNCIL,00041645
South Ribble Council,http://statistics.data.gov.uk/doc/local-authority/30UN,Housing,Cap Grant- Improve Grants,C570,SUPPLY AND INSTALL GERERIT AT ADDRESS REDACTED AS PER YOUR QUOTE OF - 3440.00 INC PC SUM FO,27/03/2018,0000438744,"3,295.00",Revenue,LANCS COUNTY COUNCIL,00041645
South Ribble Council,http://statistics.data.gov.uk/doc/local-authority/30UN,Housing,Cap Grant- Improve Grants,C570,SUPPLY AND INSTALL GERBERIT AT ADDRESS REDACTED AS PER YOUR QUOTE OF - 3275.00,27/03/2018,0000438745,"3,275.00",Revenue,LANCS COUNTY COUNCIL,00041645
South Ribble Council,http://statistics.data.gov.uk/doc/local-authority/30UN,Housing,Cap Expend Other,C750,DFG WORKS TO LCC FOR HOISTING EQUIPMENT ATADDRESS REDACTED  AS PER QUOTE SUPPLIED BY LCC,29/03/2018,0000438776,"2,873.67",Revenue,LANCS COUNTY COUNCIL,00041645
South Ribble Council,http://statistics.data.gov.uk/doc/local-authority/30UN,Housing,Cap Grant- Improve Grants,C570,SUPPLY AND INSTALL STAIRLIFT ATADDRESS REDACTED AS PER YOUR QUOTE OF - 6204.00,29/03/2018,0000438777,"6,204.00",Revenue,LANCS COUNTY COUNCIL,00041645
South Ribble Council,http://statistics.data.gov.uk/doc/local-authority/30UN,Area 2 - Waste Transport/Eastern & Central Teams,Materials General,4040,surcharge to be paid but Po now closed,07/03/2018,0000436990,300.00,Revenue,LANCS DAF,00026424
South Ribble Council,http://statistics.data.gov.uk/doc/local-authority/30UN,Regeneration,Professional Fees,4510,Leading Friends Group Preston Junction,23/03/2018,0000438495,"1,250.00",Revenue,LANCS WILDLIFE TRUST,00027009
South Ribble Council,http://statistics.data.gov.uk/doc/local-authority/30UN,Regeneration,Professional Fees,4510,Work on Preston Junction Management Plan,23/03/2018,0000438496,416.67,Revenue,LANCS WILDLIFE TRUST,00027009
South Ribble Council,http://statistics.data.gov.uk/doc/local-authority/30UN,Regeneration,Professional Fees,4510,Match funding for LEF Countryside on your Doorstep project,23/03/2018,0000438499,"5,700.00",Revenue,LANCS WILDLIFE TRUST,00027009
South Ribble Council,http://statistics.data.gov.uk/doc/local-authority/30UN,Regeneration,Professional Fees,4510,Work on Preston Junction Management Plan,23/03/2018,0000438500,"1,208.33",Revenue,LANCS WILDLIFE TRUST,00027009
South Ribble Council,http://statistics.data.gov.uk/doc/local-authority/30UN,Regeneration,Professional Fees,4510,Leading Friends Group Preston Junction,23/03/2018,0000438501,833.33,Revenue,LANCS WILDLIFE TRUST,00027009
South Ribble Council,http://statistics.data.gov.uk/doc/local-authority/30UN,Regeneration,Capital Expenditure,C230,HUTTON VILLAGE CAR PARK,23/03/2018,0000438512,764.58,Revenue,LANDSCAPE ENGINEERING LIMITED,130416
South Ribble Council,http://statistics.data.gov.uk/doc/local-authority/30UN,Area 2 - Waste Transport/Eastern & Central Teams,External Contractors Charges,4570,SPEC REPAIR - MV12SUA - JFC10086 - BO,02/03/2018,0000437942,300.74,Revenue,LEYLAND GARAGE SERVICE CENTRE LTD,00064541
South Ribble Council,http://statistics.data.gov.uk/doc/local-authority/30UN,Area 3 - Parks/Leyland East West,Grounds Maint Cntrctrs Chgs,4657,Addition of lockable slide bar to gates at Moss Side Playing Fields,23/03/2018,0000438542,65.00,Revenue,Leyland Lane Wrought Iron Gates & Railings,132012
South Ribble Council,http://statistics.data.gov.uk/doc/local-authority/30UN,Area 3 - Parks/Leyland East West,Grounds Maint Cntrctrs Chgs,4657,Repairs to gates at Worden Park Depot and Overflow Car Park,23/03/2018,0000438542,190.00,Revenue,Leyland Lane Wrought Iron Gates & Railings,132012
South Ribble Council,http://statistics.data.gov.uk/doc/local-authority/30UN,Property Services,Advertising,4842,advert for Leyland Market as per NAME REDACTED Market Manager,09/03/2018,0000438016,700.00,Revenue,LEYLAND LEADER,00091297
South Ribble Council,http://statistics.data.gov.uk/doc/local-authority/30UN,Neighbourhood Admin & Support,Grounds Maint Cntrctrs Chgs,4657,20 Tonnes of 20mm to dust limestone @ 18.80 per tonne. Deliver to Worden Park Depot.,07/03/2018,0000438038,375.62,Revenue,M C & M A STEWART HAULAGE LTD,00035567
South Ribble Council,http://statistics.data.gov.uk/doc/local-authority/30UN,Area 3 - Parks/Leyland East West,Grounds Maint Cntrctrs Chgs,4657,20 Tonnes of 20mm to dust limestone @ 18.80 per tonne. Delivered to Worden Park Depot.,07/03/2018,0000438039,374.87,Revenue,M C & M A STEWART HAULAGE LTD,00035567
South Ribble Council,http://statistics.data.gov.uk/doc/local-authority/30UN,Housing,Cap Grant- Improve Grants,C570,"DFG WORKS AT ADDRESS REDACTED, 50% OF TOTAL COS COST 1445.00",16/03/2018,0000438355,"1,445.00",Revenue,MAHONEY CONTRACTORS LTD,131271
South Ribble Council,http://statistics.data.gov.uk/doc/local-authority/30UN,Housing,Cap Grant- Improve Grants,C570,DFG WORK AT ADDRESS REDACTED AGREED TO PAY 50% OF ORIGINAL QUOTE FROM NAME REDACTED,21/03/2018,0000438507,"1,750.00",Revenue,MAHONEY CONTRACTORS LTD,131271
South Ribble Council,http://statistics.data.gov.uk/doc/local-authority/30UN,Housing,Cap Grant- Improve Grants,C570,DFG WORKS AT ADDRESS REDACTED50% OF TOTAL COST COST 1960.00,29/03/2018,0000438782,"1,960.00",Revenue,MAHONEY CONTRACTORS LTD,131271
South Ribble Council,http://statistics.data.gov.uk/doc/local-authority/30UN,Property Services,Rep & Maint Premises,2020,2017 / 2018 annual gutter inspections at ADDRESSES REDACTED.,16/03/2018,0000438356,457.00,Revenue,MAINCOAT LTD,00099244
South Ribble Council,http://statistics.data.gov.uk/doc/local-authority/30UN,Property Services,Rep & Maint Premises,2020,2017 / 2018 annual gutter inspections at ADDRESS REDACTED,16/03/2018,0000438356,118.25,Revenue,MAINCOAT LTD,00099244
South Ribble Council,http://statistics.data.gov.uk/doc/local-authority/30UN,Property Services,Rep & Maint Premises,2020,"2017 / 2018 annual gutter inspections at Middleforth industrial estate, Penwortham",16/03/2018,0000438356,118.25,Revenue,MAINCOAT LTD,00099244
South Ribble Council,http://statistics.data.gov.uk/doc/local-authority/30UN,Property Services,Rep & Maint Premises,2020,"2017 / 2018 annual gutter inspections at Balcarres Garages, Leyland",16/03/2018,0000438356,77.55,Revenue,MAINCOAT LTD,00099244
South Ribble Council,http://statistics.data.gov.uk/doc/local-authority/30UN,Property Services,Rep & Maint Premises,2020,2017 / 2018 annual gutter inspections at ADDRESS REDACTED,16/03/2018,0000438356,118.25,Revenue,MAINCOAT LTD,00099244
South Ribble Council,http://statistics.data.gov.uk/doc/local-authority/30UN,Property Services,Rep & Maint Premises,2020,2017 / 2018 annual gutter inspections at ADDRESS REDACTED,16/03/2018,0000438356,199.65,Revenue,MAINCOAT LTD,00099244
South Ribble Council,http://statistics.data.gov.uk/doc/local-authority/30UN,Property Services,Rep & Maint Premises,2020,2017 / 2018 annual gutter inspections at units 1 to 9 Forward Industrial Estate,16/03/2018,0000438356,118.25,Revenue,MAINCOAT LTD,00099244
South Ribble Council,http://statistics.data.gov.uk/doc/local-authority/30UN,Property Services,Rep & Maint Premises,2020,"2017 / 2018 annual gutter inspections at 53 to 69 Pope Lane, Penwortham",16/03/2018,0000438356,118.25,Revenue,MAINCOAT LTD,00099244
South Ribble Council,http://statistics.data.gov.uk/doc/local-authority/30UN,Property Services,Rep & Maint Premises,2020,"2017 / 2018 annual gutter inspections at Ryefield Garages, Penwortham",16/03/2018,0000438356,77.55,Revenue,MAINCOAT LTD,00099244
South Ribble Council,http://statistics.data.gov.uk/doc/local-authority/30UN,Property Services,Rep & Maint Premises,2020,2017 / 2018 annual gutter inspections at ADDRESS REDACTED,16/03/2018,0000438356,158.95,Revenue,MAINCOAT LTD,00099244
South Ribble Council,http://statistics.data.gov.uk/doc/local-authority/30UN,Property Services,Rep & Maint Premises,2020,2017 / 2018 annual gutter inspections at ADDRESS REDACTED,16/03/2018,0000438356,77.55,Revenue,MAINCOAT LTD,00099244
South Ribble Council,http://statistics.data.gov.uk/doc/local-authority/30UN,Property Services,Rep & Maint Premises,2020,2017 / 2018 annual gutter inspections at ADDRESS REDACTED,16/03/2018,0000438356,77.55,Revenue,MAINCOAT LTD,00099244
South Ribble Council,http://statistics.data.gov.uk/doc/local-authority/30UN,Property Services,Rep & Maint Premises,2020,2017 / 2018 annual gutter inspections at ADDRESS REDACTED,16/03/2018,0000438356,77.55,Revenue,MAINCOAT LTD,00099244
South Ribble Council,http://statistics.data.gov.uk/doc/local-authority/30UN,Property Services,Rep & Maint Premises,2020,"2017 / 2018 annual gutter inspections at North Lodge, Craft Units & Greenhouse & depot at Worden Park",16/03/2018,0000438356,118.25,Revenue,MAINCOAT LTD,00099244
South Ribble Council,http://statistics.data.gov.uk/doc/local-authority/30UN,Property Services,Rep & Maint Premises,2020,To undertake roofing works at Leyland Leisure centre as per quotation JEH/E/6310,23/03/2018,0000438572,"1,465.20",Revenue,MAINCOAT LTD,00099244
South Ribble Council,http://statistics.data.gov.uk/doc/local-authority/30UN,Property Services,Rep & Maint Premises,2020,materials,23/03/2018,0000438572,976.80,Revenue,MAINCOAT LTD,00099244
South Ribble Council,http://statistics.data.gov.uk/doc/local-authority/30UN,Property Services,Rep & Maint Premises,2020,2017 / 2018 annual contract for gutter cleaning at Moss Side Depot,27/03/2018,0000438749,199.65,Revenue,MAINCOAT LTD,00099244
South Ribble Council,http://statistics.data.gov.uk/doc/local-authority/30UN,Property Services,Rep & Maint Premises,2020,2017 / 2018 annual contract for gutter cleaning at Leyland market,27/03/2018,0000438749,118.25,Revenue,MAINCOAT LTD,00099244
South Ribble Council,http://statistics.data.gov.uk/doc/local-authority/30UN,Property Services,Rep & Maint Premises,2020,2017 / 2018 annual contract for gutter cleaning at Bamber Bridge Community Centre,27/03/2018,0000438749,97.90,Revenue,MAINCOAT LTD,00099244
South Ribble Council,http://statistics.data.gov.uk/doc/local-authority/30UN,Property Services,Rep & Maint Premises,2020,2017 / 2018 annual contract for gutter cleaning at Higher Walton Community Centre,27/03/2018,0000438749,97.90,Revenue,MAINCOAT LTD,00099244
South Ribble Council,http://statistics.data.gov.uk/doc/local-authority/30UN,Property Services,Rep & Maint Premises,2020,2017 / 2018 annual contract for gutter cleaning at Moss Side Community Centre,27/03/2018,0000438749,97.90,Revenue,MAINCOAT LTD,00099244
South Ribble Council,http://statistics.data.gov.uk/doc/local-authority/30UN,Property Services,Rep & Maint Premises,2020,2017 / 2018 annual contract for gutter cleaning at Leyland Museum,27/03/2018,0000438749,97.90,Revenue,MAINCOAT LTD,00099244
South Ribble Council,http://statistics.data.gov.uk/doc/local-authority/30UN,Property Services,Rep & Maint Premises,2020,2017 / 2018 annual contract for gutter cleaning at Longton Brickcroft,27/03/2018,0000438749,118.25,Revenue,MAINCOAT LTD,00099244
South Ribble Council,http://statistics.data.gov.uk/doc/local-authority/30UN,Property Services,Rep & Maint Premises,2020,2017 / 2018 annual contract for gutter cleaning at Leyland Leisure Centre,27/03/2018,0000438749,199.65,Revenue,MAINCOAT LTD,00099244
South Ribble Council,http://statistics.data.gov.uk/doc/local-authority/30UN,Property Services,Rep & Maint Premises,2020,2017 / 2018 annual contract for gutter cleaning at Bamber Bridge Leisure Centre,27/03/2018,0000438749,199.65,Revenue,MAINCOAT LTD,00099244
South Ribble Council,http://statistics.data.gov.uk/doc/local-authority/30UN,Property Services,Rep & Maint Premises,2020,2017 / 2018 annual contract for gutter cleaning at Penwortham Leisure Centre,27/03/2018,0000438749,199.65,Revenue,MAINCOAT LTD,00099244
South Ribble Council,http://statistics.data.gov.uk/doc/local-authority/30UN,Property Services,Rep & Maint Premises,2020,2017 / 2018 annual contract for gutter cleaning at South Ribble Tennis Centre,27/03/2018,0000438749,199.65,Revenue,MAINCOAT LTD,00099244
South Ribble Council,http://statistics.data.gov.uk/doc/local-authority/30UN,Property Services,Rep & Maint Premises,2020,2017 / 2018 annual contract for gutter cleaning at the Civic Centre,27/03/2018,0000438749,97.90,Revenue,MAINCOAT LTD,00099244
South Ribble Council,http://statistics.data.gov.uk/doc/local-authority/30UN,Property Services,Rep & Maint Premises,2020,2017 / 2018 annual contract for gutter cleaning at Carr Street Community Centre,27/03/2018,0000438749,97.90,Revenue,MAINCOAT LTD,00099244
South Ribble Council,http://statistics.data.gov.uk/doc/local-authority/30UN,Property Services,Rep & Maint Premises,2020,2017 / 2018 annual contract for gutter cleaning at Holland House Farm,27/03/2018,0000438749,77.55,Revenue,MAINCOAT LTD,00099244
South Ribble Council,http://statistics.data.gov.uk/doc/local-authority/30UN,Property Services,Rep & Maint Premises,2020,2017 / 2018 annual contract for gutter cleaning at Crossroads & Playground toilets Worden Park Withy Grove & Hope Terrace,27/03/2018,0000438749,253.00,Revenue,MAINCOAT LTD,00099244
South Ribble Council,http://statistics.data.gov.uk/doc/local-authority/30UN,Property Services,Rep & Maint Premises,2020,2017 / 2018 annual contract for gutter cleaning at Gregson Lane Sports Pavilion,27/03/2018,0000438749,77.55,Revenue,MAINCOAT LTD,00099244
South Ribble Council,http://statistics.data.gov.uk/doc/local-authority/30UN,Property Services,Rep & Maint Premises,2020,2017 / 2018 annual contract for gutter cleaning at Hern Avenue & St Cuthbert`s Pavilions,27/03/2018,0000438749,77.55,Revenue,MAINCOAT LTD,00099244
South Ribble Council,http://statistics.data.gov.uk/doc/local-authority/30UN,Property Services,Rep & Maint Premises,2020,2017 / 2018 annual contract for gutter cleaning at Withy Grove & Holme Pavilions,27/03/2018,0000438749,77.55,Revenue,MAINCOAT LTD,00099244
South Ribble Council,http://statistics.data.gov.uk/doc/local-authority/30UN,Property Services,Rep & Maint Premises,2020,2017 / 2018 annual contract for gutter cleaning at Hurst Grange & Kingsfold Pavilions,27/03/2018,0000438749,77.55,Revenue,MAINCOAT LTD,00099244
South Ribble Council,http://statistics.data.gov.uk/doc/local-authority/30UN,Property Services,Rep & Maint Premises,2020,2017 / 2018 annual contract for gutter cleaning at Longton Pavilion,27/03/2018,0000438749,77.55,Revenue,MAINCOAT LTD,00099244
South Ribble Council,http://statistics.data.gov.uk/doc/local-authority/30UN,Property Services,Rep & Maint Premises,2020,2017 / 2018 annual contract for gutter cleaning at Hutton Pavilion,27/03/2018,0000438749,77.55,Revenue,MAINCOAT LTD,00099244
South Ribble Council,http://statistics.data.gov.uk/doc/local-authority/30UN,Property Services,Rep & Maint Premises,2020,2017 / 2018 annual contract for gutter cleaning at Much Hoole Pavilion,27/03/2018,0000438749,77.55,Revenue,MAINCOAT LTD,00099244
South Ribble Council,http://statistics.data.gov.uk/doc/local-authority/30UN,Property Services,Rep & Maint Premises,2020,2017 / 2018 annual contract for gutter cleaning at Worden park Pavilions,27/03/2018,0000438749,77.55,Revenue,MAINCOAT LTD,00099244
South Ribble Council,http://statistics.data.gov.uk/doc/local-authority/30UN,Property Services,Rep & Maint Premises,2020,2017 / 2018 annual contract for gutter cleaning at Moss Side Pavilion,27/03/2018,0000438749,78.65,Revenue,MAINCOAT LTD,00099244
South Ribble Council,http://statistics.data.gov.uk/doc/local-authority/30UN,Property Services,Rep & Maint Premises,2020,2017 / 2018 annual contract for gutter cleaning at Penwortham Holme,27/03/2018,0000438749,77.55,Revenue,MAINCOAT LTD,00099244
South Ribble Council,http://statistics.data.gov.uk/doc/local-authority/30UN,Property Services,Rep & Maint Premises,2020,"2017 / 2018 annual contract for gutter cleaning at Worden Arts centre, Coffee shop (now the Folly), Derby Wing,Bungalow",27/03/2018,0000438749,317.90,Revenue,MAINCOAT LTD,00099244
South Ribble Council,http://statistics.data.gov.uk/doc/local-authority/30UN,Chief Executive`s Management,Professional Fees,4510,LEADERSHIP DEVELOPMENT SUPPORT FOR SOUTH RIBBLE - SHARED SERVICES DEVELOMENT REPORT ,23/03/2018,0000438521,"1,490.22",Revenue,MENRVA Limited,132359
South Ribble Council,http://statistics.data.gov.uk/doc/local-authority/30UN,Housing,Capital Expenditure,C230,EMPTY PROPERTY GRANT TO CARRY OUT REFURBISHMENT WORKS AS PER YOUR QUOTE OF 13630.00 ,29/03/2018,0000438778,"13,500.00",Revenue,METHODIST ACTION NORTH WEST,132206
South Ribble Council,http://statistics.data.gov.uk/doc/local-authority/30UN,Area 2 - Waste Transport/Eastern & Central Teams,External Contractors Charges,4570,RECOVERY - VK09AHJ - JFC10070,02/03/2018,0000437980,289.00,Revenue,MILLERS OF LONGTON LTD,00028642
South Ribble Council,http://statistics.data.gov.uk/doc/local-authority/30UN,Homelessness,Contributions,4730,cash bond ADDRESS REDACTED,21/03/2018,0000438485,950.00,Revenue,MMR Estates Limited,131518
South Ribble Council,http://statistics.data.gov.uk/doc/local-authority/30UN,Revenues Plus,Agency Fees,1121,AGENCY COST,07/03/2018,0000438087,952.75,Revenue,MORGAN HUNT PUBLIC SECTOR LTD,00120401
South Ribble Council,http://statistics.data.gov.uk/doc/local-authority/30UN,Revenues Plus,Agency Fees,1121,AGENCY COST,23/03/2018,0000438298,572.94,Revenue,MORGAN HUNT PUBLIC SECTOR LTD,00120401
South Ribble Council,http://statistics.data.gov.uk/doc/local-authority/30UN,Revenues Plus,Agency Fees,1121,AGENCY COST,14/03/2018,0000438329,572.94,Revenue,MORGAN HUNT PUBLIC SECTOR LTD,00120401
South Ribble Council,http://statistics.data.gov.uk/doc/local-authority/30UN,Revenues Plus,Agency Fees,1121,AGENCY COST,21/03/2018,0000438503,959.19,Revenue,MORGAN HUNT PUBLIC SECTOR LTD,00120401
South Ribble Council,http://statistics.data.gov.uk/doc/local-authority/30UN,Revenues Plus,Agency Fees,1121,AGENCY COST,23/03/2018,0000438583,952.75,Revenue,MORGAN HUNT PUBLIC SECTOR LTD,00120401
South Ribble Council,http://statistics.data.gov.uk/doc/local-authority/30UN,Area 1 - Penwortham Western Parishes,Professional Fees,4521,PROVISION OF STRAY DOG SERVICE - TO COVER FEBRUARY 2018,09/03/2018,0000438254,270.02,Revenue,MORNINGSIDE KENNELS,00067755
South Ribble Council,http://statistics.data.gov.uk/doc/local-authority/30UN,Area 3 - Parks/Leyland East West,External Contractors Charges,4570,Cutting of Meadow Grass 2017 season,14/03/2018,0000438279,"2,400.00",Revenue,MR J W WILDING,131286
South Ribble Council,http://statistics.data.gov.uk/doc/local-authority/30UN,HR & Communications,Training Expense-Course Fees,1402,"Tractor Driving Course 9th, 10th & 11th January 2018 NAME REDACTED",14/03/2018,0000437973,541.25,Revenue,MYERSCOUGH COLLEGE,00026453
South Ribble Council,http://statistics.data.gov.uk/doc/local-authority/30UN,HR & Communications,Training Expense-Course Fees,1402,"Tractor Driving Course 9th, 10th & 11th January 2018 NAME REDACTED",14/03/2018,0000437973,541.25,Revenue,MYERSCOUGH COLLEGE,00026453
South Ribble Council,http://statistics.data.gov.uk/doc/local-authority/30UN,HR & Communications,Training Expense-Course Fees,1402,"Tractor Driving Course 9th, 10th & 11th January 2018 NAME REDACTED",14/03/2018,0000437973,541.25,Revenue,MYERSCOUGH COLLEGE,00026453
South Ribble Council,http://statistics.data.gov.uk/doc/local-authority/30UN,HR & Communications,Training Expense-Course Fees,1402,"Tractor Driving Course 9th, 10th & 11th January 2018 NAME REDACTED",14/03/2018,0000437973,541.25,Revenue,MYERSCOUGH COLLEGE,00026453
South Ribble Council,http://statistics.data.gov.uk/doc/local-authority/30UN,Area 3 - Parks/Leyland East West,Training Expense-Course Fees,1400,17ARBSCPS527 - 1 PLACE CITY & GUILDS NPTC LEVEL2 AWARD IN TREE CLIMBING & RESCUE (QCF) formerly CS38  ,23/03/2018,0000438427,625.00,Revenue,MYERSCOUGH COLLEGE,00026453
South Ribble Council,http://statistics.data.gov.uk/doc/local-authority/30UN,Area 3 - Parks/Leyland East West,Training Expense-Course Fees,1400,17ARBSCPS524 - 1 PLACE CITY & GUILDS NPTC LEVEL 2 AWARD IN AERIAL CUTTTING O F TREES WITH A CHAINSAW,23/03/2018,0000438427,440.00,Revenue,MYERSCOUGH COLLEGE,00026453
South Ribble Council,http://statistics.data.gov.uk/doc/local-authority/30UN,Information Services,Peripherals,4244,"Annual renewal of PDQ Deploy Enterprise and PDQ Inventory Enterprise for period 18/03/18 - 17/03/19, as per quote ref. 174193",21/03/2018,0000438450,870.00,Revenue,MYPREMIER LTD,130091
South Ribble Council,http://statistics.data.gov.uk/doc/local-authority/30UN,Information Services,Peripherals,4241,"2 x Samsung Galaxy Tab S3 @ 615.00 each; 2 x Samsung Tab S3 keyboard cover @ 74 each, plus delivery, as per quote",29/03/2018,0000438563,"1,240.00",Revenue,MYPREMIER LTD,130091
South Ribble Council,http://statistics.data.gov.uk/doc/local-authority/30UN,Information Services,Peripherals,4241,"1 x wall cabinet; 1 x wall rack mounted fan tray; 1 x 4 way horizontal PDU and 1 x  fixed shelf, plus delivery, as per quote",23/03/2018,0000438627,391.00,Revenue,MYPREMIER LTD,130091
South Ribble Council,http://statistics.data.gov.uk/doc/local-authority/30UN,Information Services,Peripherals,4241,"1 x Apple 10.5`` iPad Pro WiFi + Cellular 64GB - Space Grey and 1 x Smart Keyboard for 10.5`` iPad Pro, plus delivery",29/03/2018,0000438653,843.95,Revenue,MYPREMIER LTD,130091
South Ribble Council,http://statistics.data.gov.uk/doc/local-authority/30UN,HR & Communications,Professional Fees,4510,PROFESSIONAL CHARGES IN RELATION TO THE SETTLEMENT AGREEMENT FOR NAME REDACTED REF: CHK/220329,21/03/2018,0000438523,250.00,Revenue,NAPTHENS LLP SOLICITORS,00104896
South Ribble Council,http://statistics.data.gov.uk/doc/local-authority/30UN,Area 2 - Waste Transport/Eastern & Central Teams,External Contractors Charges,4570,STEAM CLEAN - JFC9930 - MX04YNL,09/03/2018,0000438215,65.00,Revenue,NAYLORS TRANSPORT (LEYLAND) ltd,00114828
South Ribble Council,http://statistics.data.gov.uk/doc/local-authority/30UN,Area 2 - Waste Transport/Eastern & Central Teams,External Contractors Charges,4570,STEAM CLEAN - JFC9931 - VO65KPZ,09/03/2018,0000438215,65.00,Revenue,NAYLORS TRANSPORT (LEYLAND) ltd,00114828
South Ribble Council,http://statistics.data.gov.uk/doc/local-authority/30UN,Area 2 - Waste Transport/Eastern & Central Teams,External Contractors Charges,4570,STEAM CLEAN - JFC9932 - VO65KRE,09/03/2018,0000438215,65.00,Revenue,NAYLORS TRANSPORT (LEYLAND) ltd,00114828
South Ribble Council,http://statistics.data.gov.uk/doc/local-authority/30UN,Area 2 - Waste Transport/Eastern & Central Teams,External Contractors Charges,4570,STEAM CLEAN - JFC 9922 - RV14DTZ,09/03/2018,0000438215,75.00,Revenue,NAYLORS TRANSPORT (LEYLAND) ltd,00114828
South Ribble Council,http://statistics.data.gov.uk/doc/local-authority/30UN,Area 2 - Waste Transport/Eastern & Central Teams,External Contractors Charges,4570,STEAM CLEAN - JFC9933 - YP11CFM,09/03/2018,0000438215,65.00,Revenue,NAYLORS TRANSPORT (LEYLAND) ltd,00114828
South Ribble Council,http://statistics.data.gov.uk/doc/local-authority/30UN,Area 2 - Waste Transport/Eastern & Central Teams,External Contractors Charges,4570,STEAM CLEAN - JFC9934 - PO13UUM,09/03/2018,0000438215,65.00,Revenue,NAYLORS TRANSPORT (LEYLAND) ltd,00114828
South Ribble Council,http://statistics.data.gov.uk/doc/local-authority/30UN,Area 2 - Waste Transport/Eastern & Central Teams,External Contractors Charges,4570,STEAM CLEAN - JFC9935 - VO65KPY,09/03/2018,0000438215,65.00,Revenue,NAYLORS TRANSPORT (LEYLAND) ltd,00114828
South Ribble Council,http://statistics.data.gov.uk/doc/local-authority/30UN,Information Services,Training Expense-Course Fees,1420,PCI DSS Study,27/03/2018,0000438754,"4,419.20",Revenue,NCC Group Security Services Ltd,132130
South Ribble Council,http://statistics.data.gov.uk/doc/local-authority/30UN,Property Services,Client Internal Charges,4590,2017 / 2018 fees for the front end loader weekly exchange at Leyland Market,14/03/2018,0000438240,332.80,Revenue,NEALES WASTE MANAGEMENT,130129
South Ribble Council,http://statistics.data.gov.uk/doc/local-authority/30UN,Environmental Health,Other Misc,4851,Progress Housing Group FAO: NAME REDACTED Contribution towards The Base Community Development Worker,23/03/2018,0000438564,"2,000.00",Revenue,NEW PROGRESS HOUSING ASSOC ref:DNSOU001,00030135
South Ribble Council,http://statistics.data.gov.uk/doc/local-authority/30UN,Regeneration,Other Misc,4851,Installation of Gateway Feature in Penwortham,21/03/2018,0000438032,403.00,Revenue,NEWGATE NURSERIES,00069591
South Ribble Council,http://statistics.data.gov.uk/doc/local-authority/30UN,Regeneration,Capital Expenditure,C234,Planting of Tractor and Trailer at Leyland Lane Roundabout and removal of waste,21/03/2018,0000438491,395.00,Revenue,NEWGATE NURSERIES,00069591
South Ribble Council,http://statistics.data.gov.uk/doc/local-authority/30UN,Democratic Services,Operational Furniture & Equip,4010,VERBAL ONLINE CRITICAL REASONING TESTS,16/03/2018,0000438345,565.00,Revenue,NORTH WEST EMPLOYERS,00029829
South Ribble Council,http://statistics.data.gov.uk/doc/local-authority/30UN,Area 2 - Waste Transport/Eastern & Central Teams,External Contractors Charges,4570,WINTER SERVICE - JFC9534 - PO16HMZ,29/03/2018,0000438763,982.58,Revenue,NORTH WEST MOWERS LTD,130577
South Ribble Council,http://statistics.data.gov.uk/doc/local-authority/30UN,Development Enterprise & Comm Mgnt,Advertising,4842,Printing  of 5 images on board at A0 size at 86 each. 430 +VAT Total 430 +VAT,27/03/2018,0000438642,430.00,Revenue,NORWYN LTD,00118303
South Ribble Council,http://statistics.data.gov.uk/doc/local-authority/30UN,Regeneration,Other Misc,4861,11 of 594mm x 840mm (A1) budget external poster case @ 99 each 1 of Tradition 30 Wall Mounted External Noticeboard ,27/03/2018,0000438498,"1,338.00",Revenue,Notice Board Company (UK) Ltd T/A NBC Products,132456
South Ribble Council,http://statistics.data.gov.uk/doc/local-authority/30UN,Area 1 - Penwortham Western Parishes,Professional Fees,4514,Deployment of officers February 2018,07/03/2018,0000438041,"1,027.08",Revenue,NSL LTD,00116868
South Ribble Council,http://statistics.data.gov.uk/doc/local-authority/30UN,Area 1 - Penwortham Western Parishes,Other Misc,4855,Cash Collection & Ring-Go Charges February 2018,07/03/2018,0000438041,392.64,Revenue,NSL LTD,00116868
South Ribble Council,http://statistics.data.gov.uk/doc/local-authority/30UN,Information Services,Peripherals,4247,Annual purchase order for SystemCare Support Service for period 01/04/18 - 31/03/19,21/03/2018,0000438438,"5,616.12",Revenue,NVIRON LTD,00028781
South Ribble Council,http://statistics.data.gov.uk/doc/local-authority/30UN,Information Services,Capital Expenditure,C234,Nviron Pre Purchased Discounted Directed Days - 8 days @ 940.00 as per quote,21/03/2018,0000438439,"7,520.00",Revenue,NVIRON LTD,00028781
South Ribble Council,http://statistics.data.gov.uk/doc/local-authority/30UN,Information Services,Peripherals,4247,KACE support & maintenance for period 30/04/18 - 29/04/19,21/03/2018,0000438440,"1,156.00",Revenue,NVIRON LTD,00028781
South Ribble Council,http://statistics.data.gov.uk/doc/local-authority/30UN,Information Services,Peripherals,4247,12 x Veeam Backup & Replication Enterprise Annual Basic Maintenance renewal @ 287.10 each for period 07/05/18 06/05/19,23/03/2018,0000438586,"3,445.20",Revenue,NVIRON LTD,00028781
South Ribble Council,http://statistics.data.gov.uk/doc/local-authority/30UN,Planning,Agency Fees,1121,NAME REDACTED Consultant 6 months at 46ph,02/03/2018,0000438003,"1,909.00",Revenue,Park Avenue Recruitment,132388
South Ribble Council,http://statistics.data.gov.uk/doc/local-authority/30UN,Planning,Agency Fees,1121,NAME REDACTED Consultant 6 months at 46ph,14/03/2018,0000438124,874.00,Revenue,Park Avenue Recruitment,132388
South Ribble Council,http://statistics.data.gov.uk/doc/local-authority/30UN,Planning,Agency Fees,1121,NAME REDACTED Consultant 6 months at 46ph,21/03/2018,0000438455,"3,243.00",Revenue,Park Avenue Recruitment,132388
South Ribble Council,http://statistics.data.gov.uk/doc/local-authority/30UN,Housing,Cap Grant- Improve Grants,C570,DFG WORKS TO BATHROOM AS PER QUOTE AT ADDRESS REDACTED COST OF WORK 6058.00,07/03/2018,0000438163,"6,058.00",Revenue,NAME REDACTED,132426
South Ribble Council,http://statistics.data.gov.uk/doc/local-authority/30UN,Development Enterprise & Comm Mgnt,Other Expenses,4630,Part payment of the sponsorship services for South Ribble Sports Awards 2018 750.00,23/03/2018,0000438531,750.00,Revenue,Pennine Events,131103
South Ribble Council,http://statistics.data.gov.uk/doc/local-authority/30UN,Property Services,External Contractors Charges,4575,To supply hot meals @ 6.20 per head for 55 on 28th February 2018 @ 16.30 to SRBC,07/03/2018,0000438035,341.00,Revenue,Penningtons Catering Ltd,131684
South Ribble Council,http://statistics.data.gov.uk/doc/local-authority/30UN,Property Services,External Contractors Charges,4575,To supply buffet @ 6 per head for 20 on 14th March 2018 @ 16.30 to SRBC,21/03/2018,0000438349,341.00,Revenue,Penningtons Catering Ltd,131684
South Ribble Council,http://statistics.data.gov.uk/doc/local-authority/30UN,Revenues Plus,External Contractors Charges,4575,Capita Benefits Northern User Group buffet  57 people,23/03/2018,0000438576,342.00,Revenue,Penningtons Catering Ltd,131684
South Ribble Council,http://statistics.data.gov.uk/doc/local-authority/30UN,Healthy Communities,Grants to Vol Bodies,4711,grant,23/03/2018,0000438519,250.00,Revenue,Penwortham Town FC,132501
South Ribble Council,http://statistics.data.gov.uk/doc/local-authority/30UN,HR & Communications,Training Expense-Course Fees,1408,Occupational Health March 2018 including 4 x HAV tests,27/03/2018,0000438587,445.00,Revenue,People Asses Management,132492
South Ribble Council,http://statistics.data.gov.uk/doc/local-authority/30UN,Environmental Health,Professional Fees,4522,gov fee,29/03/2018,0000438823,792.00,Revenue,Personnel Checks,131483
South Ribble Council,http://statistics.data.gov.uk/doc/local-authority/30UN,Environmental Health,Professional Fees,4522,admin fee,29/03/2018,0000438823,239.94,Revenue,Personnel Checks,131483
South Ribble Council,http://statistics.data.gov.uk/doc/local-authority/30UN,Housing,Cap Grant- Improve Grants,C570,DFG WORKS TO BATHROOM AS PER QUOTE AT ADDRESS REDACTED COST OF WORK 1249.00,23/03/2018,0000438605,"1,249.00",Revenue,Positive Plumbing Solutions Ltd,131562
South Ribble Council,http://statistics.data.gov.uk/doc/local-authority/30UN,Housing,Cap Grant- Improve Grants,C570,DFG WORKS TO BATHROOM AS PER QUOTE ADDRESS REDACTED COST OF WORK 1916.50,27/03/2018,0000438739,"1,916.50",Revenue,Positive Plumbing Solutions Ltd,131562
South Ribble Council,http://statistics.data.gov.uk/doc/local-authority/30UN,Area 2 - Waste Transport/Eastern & Central Teams,Vehicle Running Costs,3137,,14/03/2018,0000438267,650.00,Revenue,POST OFFICE LTD,00031354
South Ribble Council,http://statistics.data.gov.uk/doc/local-authority/30UN,Area 2 - Waste Transport/Eastern & Central Teams,Vehicle Running Costs,3137,,14/03/2018,0000438267,210.00,Revenue,POST OFFICE LTD,00031354
South Ribble Council,http://statistics.data.gov.uk/doc/local-authority/30UN,Area 2 - Waste Transport/Eastern & Central Teams,Vehicle Running Costs,3137,,14/03/2018,0000438267,165.00,Revenue,POST OFFICE LTD,00031354
South Ribble Council,http://statistics.data.gov.uk/doc/local-authority/30UN,Area 2 - Waste Transport/Eastern & Central Teams,Vehicle Running Costs,3137,,14/03/2018,0000438267,165.00,Revenue,POST OFFICE LTD,00031354
South Ribble Council,http://statistics.data.gov.uk/doc/local-authority/30UN,Area 2 - Waste Transport/Eastern & Central Teams,Vehicle Running Costs,3137,,14/03/2018,0000438267,240.00,Revenue,POST OFFICE LTD,00031354
South Ribble Council,http://statistics.data.gov.uk/doc/local-authority/30UN,Area 2 - Waste Transport/Eastern & Central Teams,Vehicle Running Costs,3137,,14/03/2018,0000438267,240.00,Revenue,POST OFFICE LTD,00031354
South Ribble Council,http://statistics.data.gov.uk/doc/local-authority/30UN,Area 2 - Waste Transport/Eastern & Central Teams,Vehicle Running Costs,3137,,14/03/2018,0000438267,240.00,Revenue,POST OFFICE LTD,00031354
South Ribble Council,http://statistics.data.gov.uk/doc/local-authority/30UN,Area 2 - Waste Transport/Eastern & Central Teams,Vehicle Running Costs,3137,,14/03/2018,0000438267,240.00,Revenue,POST OFFICE LTD,00031354
South Ribble Council,http://statistics.data.gov.uk/doc/local-authority/30UN,Area 2 - Waste Transport/Eastern & Central Teams,Vehicle Running Costs,3137,,14/03/2018,0000438267,240.00,Revenue,POST OFFICE LTD,00031354
South Ribble Council,http://statistics.data.gov.uk/doc/local-authority/30UN,Area 2 - Waste Transport/Eastern & Central Teams,Vehicle Running Costs,3137,,14/03/2018,0000438267,240.00,Revenue,POST OFFICE LTD,00031354
South Ribble Council,http://statistics.data.gov.uk/doc/local-authority/30UN,Area 2 - Waste Transport/Eastern & Central Teams,Vehicle Running Costs,3137,,14/03/2018,0000438267,240.00,Revenue,POST OFFICE LTD,00031354
South Ribble Council,http://statistics.data.gov.uk/doc/local-authority/30UN,Area 2 - Waste Transport/Eastern & Central Teams,Vehicle Running Costs,3137,,14/03/2018,0000438267,240.00,Revenue,POST OFFICE LTD,00031354
South Ribble Council,http://statistics.data.gov.uk/doc/local-authority/30UN,Shared Financial Services,General Travel Costs,3411,,16/03/2018,0000437877,75.83,Revenue,Premier Inn Business Account,130908
South Ribble Council,http://statistics.data.gov.uk/doc/local-authority/30UN,Shared Financial Services,General Travel Costs,3411,,16/03/2018,0000437877,176.66,Revenue,Premier Inn Business Account,130908
South Ribble Council,http://statistics.data.gov.uk/doc/local-authority/30UN,HR & Communications,Operational Furniture & Equip,4010,"Chair for NAME REDACTED  High back ergonomic chair with folding height, adjust arms, headrest and inflatable lumbar support",07/03/2018,0000438088,300.00,Revenue,PREMIER OFFICE SUPPLES (UK) LTD,00090159
South Ribble Council,http://statistics.data.gov.uk/doc/local-authority/30UN,Information Services,Stationery,4133,"50,000 sheets Evolution Everyday A4 80gm",14/03/2018,0000438295,256.50,Revenue,PREMIER PAPER GROUP LTD,00022606
South Ribble Council,http://statistics.data.gov.uk/doc/local-authority/30UN,Information Services,Stationery,4133,"50,000 sheets Evolution Everyday A4 80gm 15000 sheets Evolution Business A4 90gm 5000 sheets Evolution Everyday A3",27/03/2018,0000438654,435.00,Revenue,PREMIER PAPER GROUP LTD,00022606
South Ribble Council,http://statistics.data.gov.uk/doc/local-authority/30UN,Regeneration,Other Misc,4861,Eastern Walking Cards 3 x 500  A5 4pp Digital Full Colour on 300gsm Silk Carbon Balanced* Score and Fold Finish,21/03/2018,0000438348,290.25,Revenue,Preston City Council,131913
South Ribble Council,http://statistics.data.gov.uk/doc/local-authority/30UN,Area 2 - Waste Transport/Eastern & Central Teams,Materials General,4040,TYRE REPAIRS - TR184,09/03/2018,0000438167,443.75,Revenue,PRESTON TYRE SPECIALISTS,00109516
South Ribble Council,http://statistics.data.gov.uk/doc/local-authority/30UN,Development Enterprise & Comm Mgnt,Sports Dev Expenses,4894,Drawstring Nylon Conference Bags  250 @ 2.24 each = 560.00  VAT Total 112.00 Total Price - 672.00,02/03/2018,0000437894,560.00,Revenue,Printed4you,132477
South Ribble Council,http://statistics.data.gov.uk/doc/local-authority/30UN,Area 3 - Parks/Leyland East West,Grounds Maint Cntrctrs Chgs,4657,1x J822A Danny the Dolphin Springer,07/03/2018,0000437421,980.00,Revenue,PROLUDIC LTD,00083263
South Ribble Council,http://statistics.data.gov.uk/doc/local-authority/30UN,Area 3 - Parks/Leyland East West,Grounds Maint Cntrctrs Chgs,4657,1x J821A Frankie the Fish Springer,07/03/2018,0000437421,810.00,Revenue,PROLUDIC LTD,00083263
South Ribble Council,http://statistics.data.gov.uk/doc/local-authority/30UN,Area 3 - Parks/Leyland East West,Grounds Maint Cntrctrs Chgs,4657,Delivery,07/03/2018,0000437421,134.00,Revenue,PROLUDIC LTD,00083263
South Ribble Council,http://statistics.data.gov.uk/doc/local-authority/30UN,Area 3 - Parks/Leyland East West,Grounds Maint Cntrctrs Chgs,4657,discount,07/03/2018,0000437421,-448.00,Revenue,PROLUDIC LTD,00083263
South Ribble Council,http://statistics.data.gov.uk/doc/local-authority/30UN,Area 3 - Parks/Leyland East West,Grounds Maint Cntrctrs Chgs,4657,1x J2595A Rotofun Spinning Bowl with delivery as per quotation 1712.18101,07/03/2018,0000437422,"1,430.00",Revenue,PROLUDIC LTD,00083263
South Ribble Council,http://statistics.data.gov.uk/doc/local-authority/30UN,Area 3 - Parks/Leyland East West,Grounds Maint Cntrctrs Chgs,4657,delivery,07/03/2018,0000437422,107.00,Revenue,PROLUDIC LTD,00083263
South Ribble Council,http://statistics.data.gov.uk/doc/local-authority/30UN,Area 3 - Parks/Leyland East West,Grounds Maint Cntrctrs Chgs,4657,discount,07/03/2018,0000437422,-358.00,Revenue,PROLUDIC LTD,00083263
South Ribble Council,http://statistics.data.gov.uk/doc/local-authority/30UN,Regeneration,Operational Furniture & Equip,4010,Supply and Install Farington Park Gym Equipment,21/03/2018,0000437733,"13,239.00",Revenue,PROLUDIC LTD,00083263
South Ribble Council,http://statistics.data.gov.uk/doc/local-authority/30UN,Development Enterprise & Comm Mgnt,Other Misc,485K,"Development of businesinsouthribble.com website update functionality,presentation and content 20 hours work at a cost of 30",14/03/2018,0000438004,600.00,Revenue,PROTEAN SYSTEMS LIMITED,130003
South Ribble Council,http://statistics.data.gov.uk/doc/local-authority/30UN,Development Enterprise & Comm Mgnt,Other Misc,485A,Annual Website Hosting 1st April 2018 to 31st March 2019 businessinsouthribble.com,16/03/2018,0000438407,600.00,Revenue,PROTEAN SYSTEMS LIMITED,130003
South Ribble Council,http://statistics.data.gov.uk/doc/local-authority/30UN,Information Services,Postage,4292,Franking Machine Service Charge  2/4/18 to 1/4/19,27/03/2018,0000438666,"1,365.00",Revenue,Purchase Power,00093923
South Ribble Council,http://statistics.data.gov.uk/doc/local-authority/30UN,Information Services,Training Expense-Course Fees,1420,cancelled by credit CCE161767,21/03/2018,0000438170,730.00,Revenue,QA LIMITED,00113638
South Ribble Council,http://statistics.data.gov.uk/doc/local-authority/30UN,Information Services,Training Expense-Course Fees,1420,"M20412 Course, delegate - NAME REDACTED June 2018",09/03/2018,0000438171,730.00,Revenue,QA LIMITED,00113638
South Ribble Council,http://statistics.data.gov.uk/doc/local-authority/30UN,Information Services,Training Expense-Course Fees,1420,,21/03/2018,0000438492,730.00,Revenue,QA LIMITED,00113638
South Ribble Council,http://statistics.data.gov.uk/doc/local-authority/30UN,Area 3 - Parks/Leyland East West,Contract Hire & Lease Costs,3212,HIRE OF 2 TON EXCAVTOR AND 2 TON DUMPER - ON HIRE 31.1.18 FOR APPROX 2 WEEKS HIRE,16/03/2018,0000438260,"1,046.00",Revenue,Readyplant Limited,131535
South Ribble Council,http://statistics.data.gov.uk/doc/local-authority/30UN,Area 2 - Waste Transport/Eastern & Central Teams,External Contractors Charges,4570,SPEC REPAIR (WEIGHT INDICATOR) JFC10078 - RV14DTZ,09/03/2018,0000438097,730.00,Revenue,Red Forge Limited,131499
South Ribble Council,http://statistics.data.gov.uk/doc/local-authority/30UN,Regeneration,External Contractors Charges,4570,To carry out pothole repairs on the car park adjacent to New Longton Sports and Social Club as per the quote and the site visit.,07/03/2018,0000437964,250.00,Revenue,RED ROSE BUILDING MAINTENANCE,00085410
South Ribble Council,http://statistics.data.gov.uk/doc/local-authority/30UN,Regeneration,External Contractors Charges,4570,materials,07/03/2018,0000437964,300.00,Revenue,RED ROSE BUILDING MAINTENANCE,00085410
South Ribble Council,http://statistics.data.gov.uk/doc/local-authority/30UN,Property Services,Rep & Maint Premises,2020,"Unblock drains, and investigate the problem due to possible cross connection - work carried out Friday 23rd Feb 2018",09/03/2018,0000438067,320.00,Revenue,RED ROSE BUILDING MAINTENANCE,00085410
South Ribble Council,http://statistics.data.gov.uk/doc/local-authority/30UN,Property Services,Rep & Maint Premises,2020,Civic Centre Courtyard Take up and relay to falls defective flags causing trip hazards to wheel room courtyard area approx,09/03/2018,0000438069,480.00,Revenue,RED ROSE BUILDING MAINTENANCE,00085410
South Ribble Council,http://statistics.data.gov.uk/doc/local-authority/30UN,Property Services,Rep & Maint Premises,2020,materials,09/03/2018,0000438069,105.00,Revenue,RED ROSE BUILDING MAINTENANCE,00085410
South Ribble Council,http://statistics.data.gov.uk/doc/local-authority/30UN,Homelessness,Contractors Charges 5,5311,"Payment for OSM accommodation  April, May and June 2018",23/03/2018,0000438456,"5,624.90",Revenue,REDDY & CO,00108177
South Ribble Council,http://statistics.data.gov.uk/doc/local-authority/30UN,Environmental Health,Subs to Statutory Bodies,4720,Env Health Lancs annual subs for 2017/18.,23/03/2018,0000438567,250.00,Revenue,Ribble Valley Borough Council,131651
South Ribble Council,http://statistics.data.gov.uk/doc/local-authority/30UN,Healthy Communities,Grants to Vol Bodies,4711,grant,23/03/2018,0000438520,250.00,Revenue,Ribble Valley Juniors Cycling Club,132516
South Ribble Council,http://statistics.data.gov.uk/doc/local-authority/30UN,Property Services,Water Charges,2511,1-5momentum place,16/03/2018,0000438313,500.00,Revenue,ROUNDHOUSE PROPERTIES LTD,131973
South Ribble Council,http://statistics.data.gov.uk/doc/local-authority/30UN,Regeneration,Other Misc,4851,Silent Soldier donation,29/03/2018,0000438779,250.00,Revenue,Royal British Legion Surrey,132528
South Ribble Council,http://statistics.data.gov.uk/doc/local-authority/30UN,HR & Communications,Payroll Suspense,1741,NAME REDACTED :0083437 - Subscription Renewal,14/03/2018,0000437912,519.00,Revenue,ROYAL INST OF CHARTERED SURVEYORS,00042042
South Ribble Council,http://statistics.data.gov.uk/doc/local-authority/30UN,Democratic Services,Postage,4291,ELECTORAL REGISTRATION POSTAGE GENERAL COSTS 2017/2018 (NON-ELECTION COSTS),07/03/2018,0000437943,"1,654.10",Revenue,ROYAL MAIL GROUP PLC,00033543
South Ribble Council,http://statistics.data.gov.uk/doc/local-authority/30UN,Information Services,Postage,4295,,16/03/2018,0000438359,262.94,Revenue,ROYAL MAIL GROUP PLC,00033543
South Ribble Council,http://statistics.data.gov.uk/doc/local-authority/30UN,Democratic Services,Postage,4291,ELECTORAL REGISTRATION POSTAGE GENERAL COSTS  (NON-ELECTION COSTS ONLY),29/03/2018,0000438628,322.35,Revenue,ROYAL MAIL GROUP PLC,00033543
South Ribble Council,http://statistics.data.gov.uk/doc/local-authority/30UN,Planning,Consultancy Fees,4541,Consultancy work relating to agricultural workers dwelling Planning Application ref. : 07/2017/4106/VAR,16/03/2018,0000438277,409.00,Revenue,RSK ADAS Ltd,132221
South Ribble Council,http://statistics.data.gov.uk/doc/local-authority/30UN,Area 3 - Parks/Leyland East West,External Contractors Charges,4570,WORKS AT ADDRESS REDACTED,23/03/2018,0000438465,"1,260.00",Revenue,RUSS ASPINALL T/A BEARDWOOD TREE SERVICE,00120443
South Ribble Council,http://statistics.data.gov.uk/doc/local-authority/30UN,Area 3 - Parks/Leyland East West,External Contractors Charges,4570,Tree works at ADDRESS REDACTED,23/03/2018,0000438595,"3,660.00",Revenue,RUSS ASPINALL T/A BEARDWOOD TREE SERVICE,00120443
South Ribble Council,http://statistics.data.gov.uk/doc/local-authority/30UN,Environmental Health,External Contractors Charges,4570,"Clean up at Chapel Brow, Leyland per NAME REDACTED",16/03/2018,0000438273,595.00,Revenue,S&C FOSTER LTD,132499
South Ribble Council,http://statistics.data.gov.uk/doc/local-authority/30UN,Property Services,Energy Costs,2304,22/12/17 to 16/2/18,29/03/2018,0000438678,252.12,Revenue,SCOTTISH HYDRO ELECTRIC,130051
South Ribble Council,http://statistics.data.gov.uk/doc/local-authority/30UN,Property Services,Energy Costs,2307,CCL,29/03/2018,0000438678,20.76,Revenue,SCOTTISH HYDRO ELECTRIC,130051
South Ribble Council,http://statistics.data.gov.uk/doc/local-authority/30UN,Property Services,Energy Costs,2304,6/2/18 to 2/3/18,29/03/2018,0000438679,890.07,Revenue,SCOTTISH HYDRO ELECTRIC,130051
South Ribble Council,http://statistics.data.gov.uk/doc/local-authority/30UN,Property Services,Energy Costs,2307,CCL,29/03/2018,0000438679,69.86,Revenue,SCOTTISH HYDRO ELECTRIC,130051
South Ribble Council,http://statistics.data.gov.uk/doc/local-authority/30UN,Property Services,Energy Costs,2304,24/11/17 to 27/2/18,29/03/2018,0000438680,"2,122.22",Revenue,SCOTTISH HYDRO ELECTRIC,130051
South Ribble Council,http://statistics.data.gov.uk/doc/local-authority/30UN,Property Services,Energy Costs,2307,CCl,29/03/2018,0000438680,229.27,Revenue,SCOTTISH HYDRO ELECTRIC,130051
South Ribble Council,http://statistics.data.gov.uk/doc/local-authority/30UN,Property Services,Energy Costs,2303,1/2/18 to 28/2/18,29/03/2018,0000438685,520.99,Revenue,SCOTTISH HYDRO ELECTRIC,130051
South Ribble Council,http://statistics.data.gov.uk/doc/local-authority/30UN,Property Services,Energy Costs,2307,CCL,29/03/2018,0000438685,25.78,Revenue,SCOTTISH HYDRO ELECTRIC,130051
South Ribble Council,http://statistics.data.gov.uk/doc/local-authority/30UN,Property Services,Energy Costs,2303,1/2/18 to 28/2/18,29/03/2018,0000438686,"3,135.02",Revenue,SCOTTISH HYDRO ELECTRIC,130051
South Ribble Council,http://statistics.data.gov.uk/doc/local-authority/30UN,Property Services,Energy Costs,2307,CCL,29/03/2018,0000438686,163.88,Revenue,SCOTTISH HYDRO ELECTRIC,130051
South Ribble Council,http://statistics.data.gov.uk/doc/local-authority/30UN,Property Services,Energy Costs,2303,8/12/17 to 16/2/18,29/03/2018,0000438687,726.82,Revenue,SCOTTISH HYDRO ELECTRIC,130051
South Ribble Council,http://statistics.data.gov.uk/doc/local-authority/30UN,Property Services,Energy Costs,2307,CCL,29/03/2018,0000438687,32.14,Revenue,SCOTTISH HYDRO ELECTRIC,130051
South Ribble Council,http://statistics.data.gov.uk/doc/local-authority/30UN,Property Services,Energy Costs,2303,8/12/17 to 14/2/18,29/03/2018,0000438689,841.04,Revenue,SCOTTISH HYDRO ELECTRIC,130051
South Ribble Council,http://statistics.data.gov.uk/doc/local-authority/30UN,Property Services,Energy Costs,2307,CCL,29/03/2018,0000438689,37.94,Revenue,SCOTTISH HYDRO ELECTRIC,130051
South Ribble Council,http://statistics.data.gov.uk/doc/local-authority/30UN,Property Services,Energy Costs,2303,1/2/18 to 28/2/18,29/03/2018,0000438692,892.87,Revenue,SCOTTISH HYDRO ELECTRIC,130051
South Ribble Council,http://statistics.data.gov.uk/doc/local-authority/30UN,Property Services,Energy Costs,2307,CCL,29/03/2018,0000438692,45.59,Revenue,SCOTTISH HYDRO ELECTRIC,130051
South Ribble Council,http://statistics.data.gov.uk/doc/local-authority/30UN,Property Services,Energy Costs,2303,28/11/17 to 26/2/18,29/03/2018,0000438693,286.72,Revenue,SCOTTISH HYDRO ELECTRIC,130051
South Ribble Council,http://statistics.data.gov.uk/doc/local-authority/30UN,Property Services,Energy Costs,2303,1/2/18 to 28/2/18,29/03/2018,0000438713,"1,709.58",Revenue,SCOTTISH HYDRO ELECTRIC,130051
South Ribble Council,http://statistics.data.gov.uk/doc/local-authority/30UN,Property Services,Energy Costs,2307,CCL,29/03/2018,0000438713,93.97,Revenue,SCOTTISH HYDRO ELECTRIC,130051
South Ribble Council,http://statistics.data.gov.uk/doc/local-authority/30UN,Property Services,Energy Costs,2303,16/11/17 to 15/2/18,27/03/2018,0000438717,"1,657.20",Revenue,SCOTTISH HYDRO ELECTRIC,130051
South Ribble Council,http://statistics.data.gov.uk/doc/local-authority/30UN,Property Services,Energy Costs,2307,CCL,27/03/2018,0000438717,77.52,Revenue,SCOTTISH HYDRO ELECTRIC,130051
South Ribble Council,http://statistics.data.gov.uk/doc/local-authority/30UN,Property Services,Energy Costs,2304,20/12/17 to 20/3/18,29/03/2018,0000438764,316.89,Revenue,SCOTTISH HYDRO ELECTRIC,130051
South Ribble Council,http://statistics.data.gov.uk/doc/local-authority/30UN,Property Services,Energy Costs,2303,28/11/17 to 26/2/18,29/03/2018,0000438780,"1,131.73",Revenue,SCOTTISH HYDRO ELECTRIC,130051
South Ribble Council,http://statistics.data.gov.uk/doc/local-authority/30UN,Property Services,Energy Costs,2307,CCL,29/03/2018,0000438780,57.51,Revenue,SCOTTISH HYDRO ELECTRIC,130051
South Ribble Council,http://statistics.data.gov.uk/doc/local-authority/30UN,Healthy Communities,Consultancy Fees,4536,R & M 2017/18,07/03/2018,0000437521,"16,256.79",Revenue,SERCO LEISURE (OP) LTD,00094906
South Ribble Council,http://statistics.data.gov.uk/doc/local-authority/30UN,Healthy Communities,Consultancy Fees,4536,R & M 2017/18,14/03/2018,0000438076,"16,256.79",Revenue,SERCO LEISURE (OP) LTD,00094906
South Ribble Council,http://statistics.data.gov.uk/doc/local-authority/30UN,Customer Contact,Training Expense-Course Fees,1402,Please reserve 2 x places for the Introduction to Homelessness  Law in Manchester on May 15th - 16th for NAMES REDACTED ,21/03/2018,0000438525,345.00,Revenue,SHELTER PUBLICATIONS,00034568
South Ribble Council,http://statistics.data.gov.uk/doc/local-authority/30UN,Customer Contact,Clothing- Uniforms & Laundry,4410,Please reserve 2 x places for the Introduction to Homelessness  Law in Manchester on May 15th - 16th  for NAMES REDACTED,21/03/2018,0000438525,115.00,Revenue,SHELTER PUBLICATIONS,00034568
South Ribble Council,http://statistics.data.gov.uk/doc/local-authority/30UN,Information Services,Professional Fees,4520,Shredding of Confidential Waste,02/03/2018,0000437955,371.51,Revenue,SHRED-IT LTD,00109134
South Ribble Council,http://statistics.data.gov.uk/doc/local-authority/30UN,Information Services,Professional Fees,4520,Shredding of Confidential Waste,14/03/2018,0000438310,318.43,Revenue,SHRED-IT LTD,00109134
South Ribble Council,http://statistics.data.gov.uk/doc/local-authority/30UN,Information Services,Professional Fees,4520,Shredding of Confidential Waste,27/03/2018,0000438738,350.27,Revenue,SHRED-IT LTD,00109134
South Ribble Council,http://statistics.data.gov.uk/doc/local-authority/30UN,HR & Communications,Training Expense-Course Fees,1402,British Sign Language Signature Level 1 Course and Exam NAME REDACTED Commencing: 24.02.2018,02/03/2018,0000438021,460.00,Revenue,Sign Right,132488
South Ribble Council,http://statistics.data.gov.uk/doc/local-authority/30UN,Neighbourhood Admin & Support,Other Misc,4861,"Jacket PW F400 Argyl Fleece in Bottle Green x 10 (2 x small, 6 x medium, 2 x large) @ 13.90  each",21/03/2018,0000438406,139.00,Revenue,SMART IMAGE WORKWEAR,00031503
South Ribble Council,http://statistics.data.gov.uk/doc/local-authority/30UN,Neighbourhood Admin & Support,Other Misc,4861,"Sweatshirt UC203 Bottle Green x 10 (1 x small, 7 x medium, 2 large) @ 9.90",21/03/2018,0000438406,99.00,Revenue,SMART IMAGE WORKWEAR,00031503
South Ribble Council,http://statistics.data.gov.uk/doc/local-authority/30UN,Neighbourhood Admin & Support,Other Misc,4861,"Polo shirts UC105 Active Grey x 10 (1 x small, 7 medium, 2 x large) @ 6.90 each",21/03/2018,0000438406,69.00,Revenue,SMART IMAGE WORKWEAR,00031503
South Ribble Council,http://statistics.data.gov.uk/doc/local-authority/30UN,Revenues Plus,Professional Fees,4510,IT Service Review,09/03/2018,0000438233,"31,000.00",Revenue,SOCITM LIMITED,00083195
South Ribble Council,http://statistics.data.gov.uk/doc/local-authority/30UN,Healthy Communities,Consultancy Fees,4532,Leisure Services Fee 2017/18,07/03/2018,0000437526,"15,778.33",Revenue,SOUTH RIBBLE COMMUNITY LEISURE LTD,00094210
South Ribble Council,http://statistics.data.gov.uk/doc/local-authority/30UN,Healthy Communities,Consultancy Fees,4532,Leisure Services Fee 2017/18,14/03/2018,0000438075,"15,778.33",Revenue,SOUTH RIBBLE COMMUNITY LEISURE LTD,00094210
South Ribble Council,http://statistics.data.gov.uk/doc/local-authority/30UN,Shared Financial Services,Balance Sheet,0030,mar deductions,27/03/2018,0000438761,752.00,Revenue,SOUTH RIBBLE LABOUR PARTY LOCAL GOVERNM,00120663
South Ribble Council,http://statistics.data.gov.uk/doc/local-authority/30UN,Development Enterprise & Comm Mgnt,Consultancy Fees,4541,� South Ribble Leisure Feasibility Study,27/03/2018,0000438566,"3,000.00",Revenue,SPACE & PLACE (AFLSP LTD),132403
South Ribble Council,http://statistics.data.gov.uk/doc/local-authority/30UN,Area 2 - Waste Transport/Eastern & Central Teams,Agency Fees,1121,AEDM Training for NAME REDACTED,09/03/2018,0000438152,500.00,Revenue,St Helens College,132372
South Ribble Council,http://statistics.data.gov.uk/doc/local-authority/30UN,Area 3 - Parks/Leyland East West,Grounds Maint Cntrctrs Chgs,4657,Spare Parts for Kaiser & Kuhne Sand Diggers (x3) Quote Ref: CG040118A CG040118B,07/03/2018,0000437911,"2,258.19",Revenue,SUTCLIFFE PLAY LTD,00034953
South Ribble Council,http://statistics.data.gov.uk/doc/local-authority/30UN,Area 3 - Parks/Leyland East West,Grounds Maint Cntrctrs Chgs,4657,Carriage,07/03/2018,0000437911,210.71,Revenue,SUTCLIFFE PLAY LTD,00034953
South Ribble Council,http://statistics.data.gov.uk/doc/local-authority/30UN,Property Services,Rep & Maint Premises,2020,per NAME REDACTED PO on wrong ac,29/03/2018,0000438565,549.88,Revenue,System Hygiene Ltd,132495
South Ribble Council,http://statistics.data.gov.uk/doc/local-authority/30UN,Scrutiny,Subs to Statutory Bodies,4720,Membership of the iNetwork for 2017/2018,29/03/2018,0000438543,"1,600.00",Revenue,TAMESIDE METROPOLITAN BOROUGH COUNCIL,00037293
South Ribble Council,http://statistics.data.gov.uk/doc/local-authority/30UN,Property Services,Professional Fees,4510,"To act as letting agents for units 1 & 2 Momentum park, South Rings, Bamber Bridge",27/03/2018,0000438640,502.50,Revenue,Taylor Weaver,132355
South Ribble Council,http://statistics.data.gov.uk/doc/local-authority/30UN,Property Services,Professional Fees,4510,"To act as letting agents for units 1 & 2 Momentum park, South Rings, Bamber Bridge",27/03/2018,0000438640,502.50,Revenue,Taylor Weaver,132355
South Ribble Council,http://statistics.data.gov.uk/doc/local-authority/30UN,Area 2 - Waste Transport/Eastern & Central Teams,External Contractors Charges,4570,REPAIR TO ACCIDENT DAMAGE TO BIN LIFT - JFC10130 - PJ62UCH,16/03/2018,0000438272,"10,685.37",Revenue,TERBERG MATEC UK LTD,00058625
South Ribble Council,http://statistics.data.gov.uk/doc/local-authority/30UN,Area 2 - Waste Transport/Eastern & Central Teams,Materials General,4040,1 RAVE RAIL SWITCH - VO65KRF - JFC10206 - AW,21/03/2018,0000438341,310.07,Revenue,TERBERG MATEC UK LTD,00058625
South Ribble Council,http://statistics.data.gov.uk/doc/local-authority/30UN,Area 2 - Waste Transport/Eastern & Central Teams,Materials General,4040,26486 Cylinder @ 321.77 26487 Bolt @9.40 26488 Bolt 10.78,23/03/2018,0000438545,356.45,Revenue,TERBERG MATEC UK LTD,00058625
South Ribble Council,http://statistics.data.gov.uk/doc/local-authority/30UN,Area 2 - Waste Transport/Eastern & Central Teams,Materials General,4040,RAVE RAIL SWITCH - VO65KRF - JFC10286 - AW,27/03/2018,0000438629,300.12,Revenue,TERBERG MATEC UK LTD,00058625
South Ribble Council,http://statistics.data.gov.uk/doc/local-authority/30UN,Property Services,Rep & Maint Premises,2020,"2017 / 2018 service contract for the caf� door 1, caf� door 2, car park entrance left & right, sliding doors at Leyland market",07/03/2018,0000438063,260.00,Revenue,THE AUTOMATIC DOOR COMPANY LTD,00108533
South Ribble Council,http://statistics.data.gov.uk/doc/local-authority/30UN,Property Services,Rep & Maint Premises,2020,"2017 / 2018 annual service contract for the outer, middle & inner bi-part slider, the double power swing door  at the civic centre",09/03/2018,0000438147,285.00,Revenue,THE AUTOMATIC DOOR COMPANY LTD,00108533
South Ribble Council,http://statistics.data.gov.uk/doc/local-authority/30UN,Property Services,Rep & Maint Premises,2020,To replace the battery pack to the main entrance at the civic centre as per your quotation QU003512,27/03/2018,0000438571,253.15,Revenue,THE AUTOMATIC DOOR COMPANY LTD,00108533
South Ribble Council,http://statistics.data.gov.uk/doc/local-authority/30UN,Regeneration,Professional Fees,4510,Management of infrastructure and project development,09/03/2018,0000438140,"1,400.00",Revenue,The Bee centre,132104
South Ribble Council,http://statistics.data.gov.uk/doc/local-authority/30UN,Regeneration,Professional Fees,4510,Maintenance of bee hives at Carr Wood,09/03/2018,0000438141,450.00,Revenue,The Bee centre,132104
South Ribble Council,http://statistics.data.gov.uk/doc/local-authority/30UN,Regeneration,Professional Fees,4510,Management of infrastructure and project development,16/03/2018,0000438247,"1,600.00",Revenue,The Bee centre,132104
South Ribble Council,http://statistics.data.gov.uk/doc/local-authority/30UN,Information Services,Peripherals,4247,"Support Days, as per quote",21/03/2018,0000438460,"2,779.00",Revenue,The Networking People NW (t/a TNP),132331
South Ribble Council,http://statistics.data.gov.uk/doc/local-authority/30UN,Property Services,Fixtures and Fittings,2611,Supply the following furniture to the civic centre for DWP:-  Aspen Shelves 16 x 264.00   Height Adjustable Blocks: 1 x FBHA08,02/03/2018,0000437768,746.90,Revenue,The Senator International Ltd,132436
South Ribble Council,http://statistics.data.gov.uk/doc/local-authority/30UN,Property Services,Fixtures and Fittings,2611,Cover the items on inv SO1432318 SQ - T106 - 02.C2V   X 28  and SQ - T106 - 02.C2V  X7  Order to cover the items on inv,02/03/2018,0000437769,"1,595.00",Revenue,The Senator International Ltd,132436
South Ribble Council,http://statistics.data.gov.uk/doc/local-authority/30UN,Property Services,Fixtures and Fittings,2611,Supply the following furniture to the civic centre for DWP:- Aspen Shelves 16 x 264.00 Height Adjustable Blocks: 1 x FBHA0850,02/03/2018,0000437776,767.80,Revenue,The Senator International Ltd,132436
South Ribble Council,http://statistics.data.gov.uk/doc/local-authority/30UN,HR & Communications,Training Expense-Course Fees,1408,6 sessions of councselling ,16/03/2018,0000438347,360.00,Revenue,THE THERAPY COMPANY,131955
South Ribble Council,http://statistics.data.gov.uk/doc/local-authority/30UN,Legal,Publications,4142,aldridge R56,29/03/2018,0000438768,485.00,Revenue,THOMSON REUTERS,00034979
South Ribble Council,http://statistics.data.gov.uk/doc/local-authority/30UN,Property Services,Rep & Maint Premises,2020,"Cabling works at the Civic Centre, West Paddock, Leyland as per your quotation TC1117/18",02/03/2018,0000437893,288.00,Revenue,TIS Networks,132417
South Ribble Council,http://statistics.data.gov.uk/doc/local-authority/30UN,Property Services,Rep & Maint Premises,2020,Works at Civic Centre as per your quotation TC113818 Category 5E Cabling System,23/03/2018,0000438461,"1,574.00",Revenue,TIS Networks,132417
South Ribble Council,http://statistics.data.gov.uk/doc/local-authority/30UN,Housing,Cap Grant- Improve Grants,C570,Grant payment towards the cost of supply and installation of external wall insulation to ADDRESS REDACTED,02/03/2018,0000438006,"4,000.00",Revenue,Trade Energy,132102
South Ribble Council,http://statistics.data.gov.uk/doc/local-authority/30UN,Housing,Cap Grant- Improve Grants,C570,Grant payment towards the cost of supply and installation of external wall insulation to ADDRESS REDACTED,02/03/2018,0000438012,"4,000.00",Revenue,Trade Energy,132102
South Ribble Council,http://statistics.data.gov.uk/doc/local-authority/30UN,Housing,Cap Grant- Improve Grants,C570,GRANT PAYMENT TOWARDS THE COST OF SUIPPLY EXTERNAL WALL INSULATION T ADDRESS REDACTED,23/03/2018,0000438594,"4,000.00",Revenue,Trade Energy,132102
South Ribble Council,http://statistics.data.gov.uk/doc/local-authority/30UN,Housing,Cap Grant- Improve Grants,C570,GRANT PAYMENT TOWARDS THE COST OF SUPPLY EXTERNAL WALL INSULATION TO ADDRESS REDACTED,23/03/2018,0000438619,"4,000.00",Revenue,Trade Energy,132102
South Ribble Council,http://statistics.data.gov.uk/doc/local-authority/30UN,Housing,Contributions,4730,SUPPLY AND INSTALL UPVC DOUBLE GLAZING AS PART OF THE WINTER WARMTH SCHEMECOST 20000.00,07/03/2018,0000438086,466.00,Revenue,TRADE WINDOWS & CONSERVATORIES,00119823
South Ribble Council,http://statistics.data.gov.uk/doc/local-authority/30UN,Housing,Contributions,4730,SUPPLY AND INSTALL UPVC DOUBLE GLAZING AS PART OF THE WINTER WARMTH SCHEME COST 20000.00,07/03/2018,0000438116,466.00,Revenue,TRADE WINDOWS & CONSERVATORIES,00119823
South Ribble Council,http://statistics.data.gov.uk/doc/local-authority/30UN,Housing,Contributions,4730,SUPPLY AND INSTALL UPVC DOUBLE GLAZING AS PART OF THE WINTER WARMTH SCHEME COST 20000.00,16/03/2018,0000438316,856.00,Revenue,TRADE WINDOWS & CONSERVATORIES,00119823
South Ribble Council,http://statistics.data.gov.uk/doc/local-authority/30UN,Housing,Contributions,4730,SUPPLY AND INSTALL UPVC DOUBLE GLAZING AS PART OF THE WINTER WARMTH SCHEME COST 20000.00,21/03/2018,0000438478,510.00,Revenue,TRADE WINDOWS & CONSERVATORIES,00119823
South Ribble Council,http://statistics.data.gov.uk/doc/local-authority/30UN,Housing,Contributions,4730,SUPPLY AND INSTALL UPVC DOUBLE GLAZING AS PART OF THE WINTER WARMTH SCHEME COST 20000.00,21/03/2018,0000438486,976.00,Revenue,TRADE WINDOWS & CONSERVATORIES,00119823
South Ribble Council,http://statistics.data.gov.uk/doc/local-authority/30UN,Housing,Contributions,4730,SUPPLY AND INSTALL UPVC DOUBLE GLAZING AS PART OF THE WINTER WARMTH SCHEME COST 20000.00,21/03/2018,0000438487,976.00,Revenue,TRADE WINDOWS & CONSERVATORIES,00119823
South Ribble Council,http://statistics.data.gov.uk/doc/local-authority/30UN,Housing,Contributions,4730,SUPPLY AND INSTALL UPVC DOUBLE GLAZING AS PART OF THE WINTER WARMTH SCHEME COST 20000.00,21/03/2018,0000438488,"1,114.00",Revenue,TRADE WINDOWS & CONSERVATORIES,00119823
South Ribble Council,http://statistics.data.gov.uk/doc/local-authority/30UN,Housing,Contributions,4730,SUPPLY AND INSTALL UPVC DOUBLE GLAZING AS PART OF THE WINTER WARMTH SCHEME COST 20000.00,21/03/2018,0000438489,"1,699.00",Revenue,TRADE WINDOWS & CONSERVATORIES,00119823
South Ribble Council,http://statistics.data.gov.uk/doc/local-authority/30UN,Neighbourhood Admin & Support,External Contractors Charges,4570,ANNUAL ODYSSEY LICENCE RENEWAL  FUEL SYSTEM - MOSS SIDE DEPOT 3.3.18 - 2.3.19,07/03/2018,0000438173,"1,379.15",Revenue,TRISCAN SYSTEMS LIMITED,00108339
South Ribble Council,http://statistics.data.gov.uk/doc/local-authority/30UN,Area 1 - Penwortham Western Parishes,External Contractors Charges,4570,SIGN CLEANING THROUGHOUT THE BOROUGH - TO COMMENCE 19/2/18 FOR 2 WEEKS ,09/03/2018,0000438248,"1,480.00",Revenue,ULTRA CLEAN CONSERVATORIES,130034
South Ribble Council,http://statistics.data.gov.uk/doc/local-authority/30UN,Area 2 - Waste Transport/Eastern & Central Teams,Cap Vehicles,C440,Weed control Quad Replacement for YK12AUF,16/03/2018,0000438315,"7,250.00",Revenue,VALE ENGINEERING (YORK) LTD,130424
South Ribble Council,http://statistics.data.gov.uk/doc/local-authority/30UN,Legal,Agency Fees,1121,Temporary Solicitor for 3 months from 9th January 2018,02/03/2018,0000437924,851.73,Revenue,VENN GROUP LTD,00092762
South Ribble Council,http://statistics.data.gov.uk/doc/local-authority/30UN,Legal,Agency Fees,1121,Temporary Solicitor for 3 months from 9th January 2018,09/03/2018,0000438139,879.51,Revenue,VENN GROUP LTD,00092762
South Ribble Council,http://statistics.data.gov.uk/doc/local-authority/30UN,Legal,Agency Fees,1121,Temporary Solicitor for 3 months from 9th January 2018,21/03/2018,0000438462,"1,440.12",Revenue,VENN GROUP LTD,00092762
South Ribble Council,http://statistics.data.gov.uk/doc/local-authority/30UN,Legal,Agency Fees,1121,Temporary Solicitor for 3 months from 9th January 2018,29/03/2018,0000438670,"1,037.31",Revenue,VENN GROUP LTD,00092762
South Ribble Council,http://statistics.data.gov.uk/doc/local-authority/30UN,Area 2 - Waste Transport/Eastern & Central Teams,Materials General,4040,1 CAMERA MONITOR M935 - JFC10314 - PJ62UCH - TH,29/03/2018,0000438809,175.00,Revenue,VISION UK,132111
South Ribble Council,http://statistics.data.gov.uk/doc/local-authority/30UN,Area 2 - Waste Transport/Eastern & Central Teams,Materials General,4040,1 CAMERA MONITOR M935 - JFC10313 - PJ62UCM - TH,29/03/2018,0000438809,175.00,Revenue,VISION UK,132111
South Ribble Council,http://statistics.data.gov.uk/doc/local-authority/30UN,Information Services,Peripherals,4269,"Annual purchase order for ISDN lines, line rentals & call charges for period 01/04/17 - 31/03/18",02/03/2018,0000438024,741.47,Revenue,VODAFONE RE:CABLE & WIRELESS UK,130810
South Ribble Council,http://statistics.data.gov.uk/doc/local-authority/30UN,Property Services,Water Charges,2511,1/4/18 to 31/3/18,07/03/2018,0000437935,"3,744.20",Revenue,WATER PLUS,00029845
South Ribble Council,http://statistics.data.gov.uk/doc/local-authority/30UN,Property Services,Water Charges,2511,1/4/18 to 31/3/19,07/03/2018,0000437936,"1,790.06",Revenue,WATER PLUS,00029845
South Ribble Council,http://statistics.data.gov.uk/doc/local-authority/30UN,Property Services,Water Charges,2511,28/11/17 to 22/2/18,09/03/2018,0000438058,604.60,Revenue,WATER PLUS,00029845
South Ribble Council,http://statistics.data.gov.uk/doc/local-authority/30UN,Property Services,Water Charges,2511,1/12/17 to 7/3/18,16/03/2018,0000438370,"7,807.18",Revenue,WATER PLUS,00029845
South Ribble Council,http://statistics.data.gov.uk/doc/local-authority/30UN,Property Services,Water Charges,2511,1/4/18 to 31/3/19,27/03/2018,0000438591,"1,790.06",Revenue,WATER PLUS,00029845
South Ribble Council,http://statistics.data.gov.uk/doc/local-authority/30UN,Property Services,Water Charges,2511,24th april 2018 to 18 dec 2017,27/03/2018,0000438624,519.73,Revenue,WATER PLUS,00029845
South Ribble Council,http://statistics.data.gov.uk/doc/local-authority/30UN,HR & Communications,Operational Furniture & Equip,4010,"Lanyards - 4 Designs
Product Reference:BKLD09-20B Quotation:312564",16/03/2018,0000438395,232.50,Revenue,We Brand It  re;Trade Promotions Ltd,132422
South Ribble Council,http://statistics.data.gov.uk/doc/local-authority/30UN,HR & Communications,Operational Furniture & Equip,4010,Round retractable ski pass holder Product Reference: W13434 Quotation: 312564,16/03/2018,0000438395,35.00,Revenue,We Brand It  re;Trade Promotions Ltd,132422
South Ribble Council,http://statistics.data.gov.uk/doc/local-authority/30UN,Legal,Consultancy Fees,4541,PROFESSIONAL SERVICES (SETTLEMENT AGREEMENT) 24 JANUARY 2018 - 7 FEBRUARY 2018,23/03/2018,0000438581,866.20,Revenue,WEIGHTMANS LLP,00120867
South Ribble Council,http://statistics.data.gov.uk/doc/local-authority/30UN,Legal,Consultancy Fees,4541,PROFESSIONAL SERVICES (STATUTORY OFFICER PROCEDURES) 19 December 2017 - 26 FEBRUARY 2018,23/03/2018,0000438582,837.00,Revenue,WEIGHTMANS LLP,00120867
South Ribble Council,http://statistics.data.gov.uk/doc/local-authority/30UN,Area 3 - Parks/Leyland East West,External Contractors Charges,4570,"TREE WORKS - CHORLEY ROAD, BAMBER BRIDGE",27/03/2018,0000438636,"5,295.00",Revenue,WESTFIELD TREE SERVICES LTD,00114226
South Ribble Council,http://statistics.data.gov.uk/doc/local-authority/30UN,Revenues Plus,Postage,4291,Mail Services Revenues March 2018,16/03/2018,0000438364,"1,116.11",Revenue,WHISTL  UK LTD,131310
South Ribble Council,http://statistics.data.gov.uk/doc/local-authority/30UN,Area 3 - Parks/Leyland East West,Grounds Maint Cntrctrs Chgs,4657,Springy Donkey & Dolphin 2x Springs 3043-302 @ 149.00 24x M12 Washers 2215-509 @ 0.45 24x M12 Binx Nut 2191-012,07/03/2018,0000436803,446.76,Revenue,WICKSTEED LEISURE LTD,00038661
South Ribble Council,http://statistics.data.gov.uk/doc/local-authority/30UN,Area 3 - Parks/Leyland East West,External Contractors Charges,4570,Hedge cutting Autumn & Winter 2017/18,23/03/2018,0000438600,"3,000.00",Revenue,WILLIAM METCALFE & SONS,00029573
South Ribble Council,http://statistics.data.gov.uk/doc/local-authority/30UN,Area 2 - Waste Transport/Eastern & Central Teams,Operational Furniture & Equip,4010,CP7763 3/4 DR IMPACT WRENCH (CPT8941077630),21/03/2018,0000438346,381.56,Revenue,WILLIAM MOORE & SON (PRESTON) LTD,00028312
South Ribble Council,http://statistics.data.gov.uk/doc/local-authority/30UN,Area 1 - Penwortham Western Parishes,Grounds Maintanance,2040,"Ryefied Avenue Car Park - Break out and repair 8 locations as agreed on site and lay 100mm (60 binder, 40 wearing) tarmac",21/03/2018,0000438381,"1,450.00",Revenue,WILLIAM PYE LTD,00031590
South Ribble Council,http://statistics.data.gov.uk/doc/local-authority/30UN,Area 1 - Penwortham Western Parishes,Grounds Maintanance,2040,"Seven Stars Car Park - Break out and repair entrance area as shown on site and lay 100mm (60 binder, 40 wearing) tarmac",21/03/2018,0000438381,"2,950.00",Revenue,WILLIAM PYE LTD,00031590
South Ribble Council,http://statistics.data.gov.uk/doc/local-authority/30UN,Area 3 - Parks/Leyland East West,Grounds Maint Cntrctrs Chgs,4657,5 No LONGTON BRICKCROFT SIGNS REAR PRINTED ON POLYCARB @ 72.00 EACH,23/03/2018,0000438426,360.00,Revenue,WOODSTOCK SIGNS,00039039
South Ribble Council,http://statistics.data.gov.uk/doc/local-authority/30UN,HR & Communications,Training Expense-Course Fees,1408,OCC HEALTH ACTIVITY FOR JANUARY 2018,16/03/2018,0000438380,750.00,Revenue,WRIGHTINGTON WIGAN & LEIGH NHS FOUNDATION TRUST,131288
South Ribble Council,http://statistics.data.gov.uk/doc/local-authority/30UN,HR & Communications,Training Expense-Course Fees,1408,taxed,16/03/2018,0000438380,65.00,Revenue,WRIGHTINGTON WIGAN & LEIGH NHS FOUNDATION TRUST,131288
South Ribble Council,http://statistics.data.gov.uk/doc/local-authority/30UN,Planning,Professional Fees,4510,Cuerden Investment Site Professional Consultancy Services in connection with the above  Professional Planning Fees ,27/03/2018,0000438730,"1,631.50",Revenue,WYG ENVIRONMENT TRANSPORT LIMITED,130177
South Ribble Council,http://statistics.data.gov.uk/doc/local-authority/30UN,Shared Assurance Services,Employee Related Insurance,1800,Risk Management Consultancy Fee,23/03/2018,0000438621,"1,250.00",Revenue,ZURICH MANAGEMENT SERVICES,00113159
